Cogmind - Beta 17 @@@ ROGUE MODE // 2026.06.30 @ 22:29:57 Player: Savant Result: Destroyed by D-83 Annihilator with Micro-nuke Launcher Performance ------------- Evolutions (6) 3000 Regions Visited (25) 5000 Robots Destroyed (238) 1190 Value Destroyed (9911) 9911 Prototype IDs (60) 1200 Alien Tech Used (1) 200 Bonus (35092) 35092 TOTAL SCORE: 55593 Bonus ------- High Alert Combat Kills 301 Follower Combat Kills 4454 Prayed to X0-1V1 5000 Major X0-1V1 Interference 23600 Entered Garrisons 600 Used RIF Installer 1500 Network Hubs Disabled 200 Registered with UFD 300 Met Optimus in HQ 500 Met Imprinter 300 Built Enhanced Grunts 300 Met R17 at Cetus 500 Friendly Fire -2463 Cogmind --------- Core Integrity 0/780 Matter 122/300 Energy 321/1430 System Corruption 1% Temperature Cool (0) Movement Hovering (46) Location -4/Armory Parts ------- > --- POWER (2) -------- Light Nuclear Core Light Antimatter Reactor > --- PROPULSION (6) --- Combat Gravmag System Improved Gyrokinetic Inverter Improved Gyrokinetic Inverter Improved Gyrokinetic Inverter Improved Linear Gravjet Combat Linear Gravjet > --- UTILITY (10) ----- Experimental Heat Sink Advanced Cooling System High-capacity Storage Unit Enhanced Optical Array Long-range Sensor Array Advanced Signal Interpreter Advanced Transmission Jammer Relay Coupler [NC] (23) Relay Coupler [Sentry] (4) X0-1V1's Piety Tracker > --- WEAPON (1) ------- Enhanced Nova Cannon > --- INVENTORY (20) --- Improved Gyrokinetic Inverter Improved Gyrokinetic Inverter Advanced Coolant Injector Large Storage Unit Experimental Matter Compressor (500) Advanced Sensor Array Tactical Coordination Suite Advanced EM Shield Relay Coupler [Programmer] (99) Advanced Component Analysis Suite A0-MCA's Component Scanner Phasing AFG Enhanced Nova Cannon Enhanced Nova Cannon Enhanced Nova Cannon Gamma Bomb Array Fusion Bomb Launcher Advanced Datajack Improved Remote Datajack Plasma Lance Peak State ------------ > --- POWER ------------ Micro Fission Core Compact Particle Reactor > --- PROPULSION ------- Antigrav Array Combat Linear Gravjet Combat Linear Gravjet Combat Linear Gravjet Combat Linear Gravjet > --- UTILITY ---------- Large Storage Unit Enhanced Optical Array Advanced Sensor Array Advanced Signal Interpreter Advanced Reaction Control System Centrium Medium Armor Plating Experimental Hacking Suite Relay Coupler [C] Relay Coupler [Sentry] X0-1V1's Piety Tracker > --- WEAPON ----------- Plasma Lance > --- INVENTORY -------- Improved Linear Gravjet Experimental Matter Compressor Tactical Coordination Suite Advanced EM Shield Advanced Point Defense System Relay Coupler [NC] Relay Coupler [C] Relay Coupler [C] Relay Coupler [Programmer] Advanced Component Analysis Suite A0-MCA's Component Scanner Phasing AFG Enhanced Nova Cannon Fusion Bomb Launcher Improved Remote Datajack [Rating: 151] Favorites ----------- Power Micro Fission Core Engine Heavy Ion Engine Power Core Micro Fission Core Reactor Micro Antimatter Reactor Propulsion Light Treads Treads Light Treads Leg Multireflex Exoskeleton Hover Unit Combat Gravmag System Flight Unit Improved Flight Unit Utility X0-1V1's Piety Tracker Device X0-1V1's Piety Tracker Storage Large Storage Unit Processor Advanced Signal Interpreter Hackware Relay Coupler [C] Protection Centrium Medium Armor Plating Weapon Plasma Lance Energy Gun Improved EM Shotgun Energy Cannon Beam Cannon Ballistic Gun Improved Assault Rifle Ballistic Cannon Antimatter Cannon Launcher Precision Rocket Launcher Special Weapon Improved Remote Datajack Impact Weapon Flail Slashing Weapon Katana Piercing Weapon Plasma Lance Special Melee Weapon Datajack Build | -11 -10 -10 -9 -9 -9 -9 -6 -6 -6 -6 -6 -6 -5 -5 -5 -5 -5 -5 -5 -5 -5 -5 -5 -4 -4 ------- Run | Yrd Mat Min Mat Sto Rec Scr Fac Was Fac Low Low Zio Pro Fac Gar Fac Gar Fac Ext Cet Arc Hub Gar Fac Arm Slots Evolved 12 | . . . 2 . . . 6 . . . . . . 2 . . . . . . . . . 2 . Power . | . . . . . . . . . . . . . . . . . . . . . . . . . . Propulsion 4 | . . . 1 . . . 3 . . . . . . . . . . . . . . . . . . Utility 8 | . . . 1 . . . 3 . . . . . . 2 . . . . . . . . . 2 . Weapon . | . . . . . . . . . . . . . . . . . . . . . . . . . . Parts Attached 266 | 7 9 5 22 19 4 6 16 8 17 . 5 1 2 7 17 21 10 9 15 11 2 2 19 13 19 Power 33 | 1 1 2 3 3 . . 2 2 . . . . . . 2 2 1 1 6 1 . . 1 1 4 Engine 12 | 1 . 2 3 3 . . 2 . . . . . . . . . . . 1 . . . . . . Core 16 | . 1 . . . . . . . . . . . . . 2 2 1 1 5 . . . 1 . 3 Reactor 5 | . . . . . . . . 2 . . . . . . . . . . . 1 . . . 1 1 Propulsion 91 | 2 1 1 5 6 1 4 3 4 7 . 3 . 1 1 9 12 . 4 5 3 2 1 8 3 5 Treads 16 | 2 1 1 5 5 1 1 . . . . . . . . . . . . . . . . . . . Leg . | . . . . . . . . . . . . . . . . . . . . . . . . . . Wheel . | . . . . . . . . . . . . . . . . . . . . . . . . . . Hover 50 | . . . . . . . . 4 2 . 2 . . . 3 11 . 4 2 3 2 1 8 3 5 Flight 25 | . . . . 1 . 3 3 . 5 . 1 . 1 1 6 1 . . 3 . . . . . . Utility 83 | 2 3 . 3 3 . 1 8 . 7 . 1 1 . 4 4 6 9 3 . 4 . 1 10 7 6 Device 35 | 1 1 . 1 1 . . 7 . 3 . . 1 . 2 3 3 1 . . . . . 4 2 5 Storage 11 | 1 2 . 1 . . 1 . . . . 1 . . 1 . . . 2 . . . 1 . 1 . Processor 2 | . . . . . . . . . 1 . . . . 1 . . . . . . . . . . . Hackware 23 | . . . . . . . 1 . 1 . . . . . 1 2 6 1 . 1 . . 6 4 . Protection 12 | . . . 1 2 . . . . 2 . . . . . . 1 2 . . 3 . . . . 1 Artifact . | . . . . . . . . . . . . . . . . . . . . . . . . . . Weapon 59 | 2 4 2 11 7 3 1 3 2 3 . 1 . 1 2 2 1 . 1 4 3 . . . 2 4 Energy Gun 7 | . . . 3 3 . . . . . . . . . . . . . . . 1 . . . . . Energy Cannon 19 | . 2 1 3 3 . 1 . 2 . . . . . . . 1 . 1 1 . . . . 1 3 Ballistic Gun 11 | 2 . 1 3 1 1 . 1 . . . . . . . . . . . 1 1 . . . . . Ballistic Cannon 1 | . . . . . . . . . . . . . . . . . . . 1 . . . . . . Launcher 5 | . . . 1 . . . 2 . . . . . . . . . . . . . . . . 1 1 Special Weapon 4 | . 1 . . . . . . . . . . . . . 1 . . . 1 1 . . . . . Impact Weapon 1 | . . . 1 . . . . . . . . . . . . . . . . . . . . . . Slashing Weapon 4 | . 1 . . . 1 . . . 2 . . . . . . . . . . . . . . . . Piercing Weapon 5 | . . . . . . . . . 1 . 1 . 1 1 1 . . . . . . . . . . Special Melee Weapon 2 | . . . . . 1 . . . . . . . . 1 . . . . . . . . . . . Unidentified Prototypes 30 | . 1 . 5 2 . . 1 2 5 . . 1 1 . . 1 . 4 3 4 . . . . . Corrupted Parts 1 | . . . . . . . . . . . . . . . . . . . 1 . . . . . . System Corruption 1 | . . . . . . . . . . . . . . . . . . . 1 . . . . . . Parts Lost 85 | . 2 1 4 5 . . 3 1 6 1 4 . . . 14 6 3 1 11 . 1 . 2 3 17 Power 16 | . . . 1 . . . . . 1 . . . . . 2 1 1 . 5 . . . . 1 4 Propulsion 40 | . 1 1 . 2 . . 2 1 4 . 4 . . . 7 4 . . 4 . 1 . 2 1 6 Utility 21 | . . . 1 2 . . 1 . 1 . . . . . 4 1 2 1 1 . . . . 1 6 Weapon 8 | . 1 . 2 1 . . . . . 1 . . . . 1 . . . 1 . . . . . 1 Highest Loss Streak 14 | . 1 1 3 3 . . 2 1 5 1 3 . . . 5 3 3 1 5 . 1 . 1 2 14 To Critical Strikes 1 | . . . . 1 . . . . . . . . . . . . . . . . . . . . . Average Backups 14 | 4 9 14 17 19 20 14 7 9 8 9 9 10 10 13 14 14 14 14 14 14 14 15 14 16 18 Power . | . 1 1 . 1 1 . . . 1 1 1 1 1 1 . . . . . . . . . . . Propulsion 1 | 2 3 4 2 5 6 4 . . . . . . . 1 . . . . . . . . . . 1 Utility 7 | . . 4 4 3 5 5 3 4 5 6 5 6 7 8 10 10 9 11 10 10 10 10 10 12 12 Weapon 4 | . 3 3 8 8 7 4 3 4 2 2 2 2 2 2 2 3 4 2 3 4 3 3 3 2 2 Tool/Special . | . . . . . . . . . . . . . . . . . . . . . . . . . . Unused Backups 73 | . 4 2 6 3 . 4 . 1 4 2 1 1 1 4 4 2 7 1 6 . . 1 5 3 11 Power 3 | . 1 . . . . 1 . . . . . . . . . . . . . . . . 1 . . Propulsion 16 | . 2 1 3 1 . . . . 1 . 1 . . 1 . . 2 . . . . . . 2 2 Utility 32 | . . 1 . 2 . 2 . 1 2 2 . 1 1 2 2 1 3 . 2 . . 1 3 1 5 Weapon 19 | . 1 . 3 . . 1 . . 1 . . . . 1 2 1 1 1 4 . . . . . 3 Tool/Special 3 | . . . . . . . . . . . . . . . . . 1 . . . . . 1 . 1 Average Slot Usage (%) 94 | . 99 100 99 99 99 94 89 75 93 85 80 86 91 92 86 97 93 96 96 99 93 94 91 95 89 Engine 5 | . 5 13 11 11 11 11 6 3 5 6 5 6 6 5 . . . . . . . . . . . Core 3 | . 8 . . . . . . . . . . . . . 1 10 10 11 9 10 5 5 5 5 5 Reactor 1 | . . . . . . . . 4 6 6 5 6 6 5 5 . . . . . 5 5 5 4 2 Treads 10 | . 28 28 33 32 33 18 . . . . . . . . . . . . . . . . . . . Hover 12 | . . . . . . . . 4 3 6 11 13 13 2 10 21 29 32 31 31 34 35 29 27 27 Flight 7 | . . . . . . 14 31 23 37 26 16 13 18 22 15 9 . . 6 8 . . . . . Device 13 | . 13 14 15 16 11 11 20 23 15 12 16 20 25 25 13 13 5 8 9 11 11 10 12 12 16 Storage 7 | . 14 14 11 11 11 11 6 5 6 6 5 6 6 5 5 5 5 5 5 5 5 5 5 5 5 Processor 5 | . . . . . . . . . 5 6 5 6 6 10 10 11 11 11 11 11 11 11 11 10 10 Hackware 4 | . . . . . . . 3 . 2 6 5 2 . . 3 9 10 12 7 5 5 5 6 19 13 Protection 2 | . . . 6 4 . . . . 1 . 1 3 . 3 2 . 4 . 3 5 5 5 5 3 2 Energy Gun 1 | . . . 7 10 . . . . . . . . . . . . . . . . . . . . . Energy Cannon 2 | . 11 14 5 4 8 1 1 . . . . . . . . . . . 1 1 2 . . 2 2 Ballistic Gun 4 | . 15 14 8 7 21 5 3 . . . . . . . . . . . . . . . . . . Slashing Weapon 1 | . . . . . . 11 6 2 5 5 . . . . . . . . . . . . . . . Piercing Weapon 2 | . . . . . . . . . . . 2 6 6 5 8 9 5 5 2 . 1 4 3 1 . Special Melee Weapon 1 | . . . . . 2 11 2 . . . . . . 1 2 . . . . . . . . . . Peak Build Rating 151 | 7 22 23 31 37 34 37 63 74 80 72 84 80 81 104 123 117 118 119 118 122 121 126 138 151 142 Average Rating 72 | 5 8 21 28 30 33 32 55 60 73 70 72 72 77 96 102 107 111 114 109 108 119 120 121 144 119 On Entrance 75 | . 7 22 22 31 34 29 37 54 72 70 66 73 73 81 102 97 113 112 118 103 121 120 126 138 143 Avg Prop Armor Cover (%) 7 | . . . . . . . . 8 8 5 11 11 12 5 8 9 . 1 3 4 4 4 5 2 . Naked Turns . | . . . . . . . . . . . . . . . . . . . . . . . . . . Heaviest Build 83 | 15 31 32 59 59 59 56 36 36 30 27 35 27 27 40 45 49 47 46 64 58 63 56 63 82 83 Greatest Support 96 | 40 40 40 60 60 60 60 46 37 46 29 41 30 38 41 53 78 67 85 96 73 74 95 95 92 87 Greatest Overweight (x) 3 | . . . . . . 1 . . . . . . . . 2 2 . . 3 . 1 . 1 1 1 Average Overweight (x) . | . . . . . . . . . . . . . . . . . . . . . . . . . . Largest Inventory Capacity 20 | 8 15 15 20 20 20 20 10 10 10 10 10 10 10 15 15 15 15 15 15 15 15 15 15 20 20 Average Capacity 14 | 7 10 15 18 20 20 15 10 10 10 10 10 10 10 13 15 15 15 15 15 15 15 15 15 16 20 Most Carried 20 | 7 13 15 20 20 20 20 10 10 10 10 10 10 10 15 15 15 15 15 15 15 15 15 15 20 20 Average Carried 14 | 4 9 14 18 19 19 14 9 9 9 9 9 9 9 13 14 14 14 14 14 14 14 14 14 16 18 Final Capacity 20 | 8 15 15 20 20 20 10 10 10 10 10 10 10 10 15 15 15 15 15 15 15 15 15 15 20 20 Final Carried 20 | 7 13 15 20 20 20 10 10 10 10 10 10 10 10 15 15 15 15 15 15 15 15 15 15 20 20 Class Distribution -------------------- 28% | Mutant 15% | Bothacker-Mutant 12% | Commander-Mutant 10% | Bothacker-Scout 8% | Sprinter 8% | Scavenger-Mutant 7% | Scout 3% | Gunner Dominant Class ---------------- Mutant | -10/Materials Mutant | -10/Mines Mutant | -9/Materials Mutant | -9/Storage Gunner | -9/Recycling Commander-Mutant | -9/Scraptown Sprinter | -6/Factory Sprinter | -6/Waste Sprinter | -6/Factory Sprinter | -6/Lower Caves Mutant | -6/Lower Caves Mutant | -6/Zion Scout | -5/Proximity Caves Scout | -5/Factory Mutant | -5/Garrison Scout | -5/Factory Bothacker-Mutant | -5/Garrison Bothacker-Scout | -5/Factory Bothacker-Scout | -5/Extension Bothacker-Mutant | -5/Cetus Commander-Mutant | -5/Archives Commander-Scout | -5/Hub_04(d) Bothacker-Mutant | -5/Garrison Bothacker-Mutant | -4/Factory Mutant | -4/Armory Resources | -11 -10 -10 -9 -9 -9 -9 -6 -6 -6 -6 -6 -6 -5 -5 -5 -5 -5 -5 -5 -5 -5 -5 -5 -4 -4 ----------- Run | Yrd Mat Min Mat Sto Rec Scr Fac Was Fac Low Low Zio Pro Fac Gar Fac Gar Fac Ext Cet Arc Hub Gar Fac Arm Matter Collected 10659 | 247 363 133 471 415 263 10 492 264 312 272 299 10 50 360 547 422 934 445 1967 200 79 44 959 871 230 Remotely . | . . . . . . . . . . . . . . . . . . . . . . . . . . Salvage Created 9613 | 22 842 288 1161 1660 368 . 256 144 132 38 30 . 130 485 731 348 237 298 691 213 37 17 489 732 264 Parts 525 | 3 38 13 73 116 11 . 7 7 9 2 2 . 3 14 32 34 16 15 27 7 4 3 32 34 23 Haulers Intercepted 8 | . 2 . 2 3 . . . . . . . . . . . . . 1 . . . . . . . Recyclers Shooed 5 | . . 1 1 1 . . . . . . . . . 2 . . . . . . . . . . . Parts Field Recycled . | . . . . . . . . . . . . . . . . . . . . . . . . . . Retrieved Matter . | . . . . . . . . . . . . . . . . . . . . . . . . . . Parts Self-Destructed 15 | . . . . . . . . . . 1 5 . 9 . . . . . . . . . . . . Prevented 5 | . . . . . . . . . . 2 3 . . . . . . . . . . . . . . Parts Restored . | . . . . . . . . . . . . . . . . . . . . . . . . . . Kills | -11 -10 -10 -9 -9 -9 -9 -6 -6 -6 -6 -6 -6 -5 -5 -5 -5 -5 -5 -5 -5 -5 -5 -5 -4 -4 ------- Run | Yrd Mat Min Mat Sto Rec Scr Fac Was Fac Low Low Zio Pro Fac Gar Fac Gar Fac Ext Cet Arc Hub Gar Fac Arm Combat Hostiles Destroyed 179 | . 18 11 24 34 5 . 2 . 2 . 3 . 1 2 15 5 6 . 9 3 . . 11 12 16 Melee 33 | . . . . 1 . . 1 . 2 . . . 1 1 12 2 3 . 5 . . . 2 2 1 Guns 46 | . 4 4 11 23 4 . . . . . . . . . . . . . . . . . . . . Cannons 50 | . 13 7 6 2 1 . . . . . . . . . . . . . 3 2 . . 9 5 2 AOE 43 | . . . 7 6 . . 1 . . . 3 . . 1 3 3 3 . . . . . . 3 13 Classes Destroyed 20 | 1 5 2 3 . 3 . . 1 . 1 . . 1 1 . . 1 . 1 . . . . . . Worker 9 | . . . 1 2 . . . . 1 . . . . . . 4 . . . . . . . 1 . Builder 14 | . . . 2 4 . . . . . . . . . . . 2 . 2 2 . . 1 . 1 . Tunneler 2 | 1 . . 1 . . . . . . . . . . . . . . . . . . . . . . Hauler 8 | . 2 . 2 3 . . . . . . . . . . . . . 1 . . . . . . . Recycler 12 | . 1 . 1 3 . . 2 . . . . . . 3 . . . 1 1 . . . . . . Operator 5 | . 2 . 1 . . . . . 1 . . . . . . . . . . . 1 . . . . Drone 1 | . . . . . . . . . . . . . . 1 . . . . . . . . . . . Watcher 10 | . . . 1 1 . . . . . . . . . 1 . 2 . . 1 1 . . 2 . 1 Swarmer 49 | . 3 . 4 14 . . 2 . . . 3 . . . 5 3 2 . . . . . . 2 11 Saboteur 7 | . . . . . . . . . . . . . . . . . 3 . . . . . . . 4 Grunt 51 | . 15 2 16 8 1 . . . . . . . . . 3 . 2 . . . . . . 4 . Brawler 1 | . . . . . . . . . . . . . 1 . . . . . . . . . . . . Duelist 1 | . . . . . 1 . . . . . . . . . . . . . . . . . . . . Sentry 34 | . . 2 4 12 1 . . . . . . . . 1 4 2 1 . 4 . . . 1 . 2 Hunter 7 | . . . . . 1 . . . . . . . . . . . . . 2 . . . 1 3 . Programmer 19 | . . . . . 1 . . . 1 . . . . . 3 . . . 2 . . . 9 3 . Behemoth 2 | . . . . . . . . . . . . . . . . . . . 1 . . . 1 . . Cetus Guard 3 | . . . . . . . . . . . . . . . . . . . . 3 . . . . . Samaritan 1 | . . . . . . . . . . 1 . . . . . . . . . . . . . . . Assembled 7 | . . 7 . . . . . . . . . . . . . . . . . . . . . . . Thug 1 | . . . . . . . . . 1 . . . . . . . . . . . . . . . . Martyr 2 | . . . . . . . . 2 . . . . . . . . . . . . . . . . . Best Kill Streak 14 | 1 4 2 10 14 4 . 2 . 1 . 3 . 1 2 3 3 4 1 3 4 1 1 5 3 7 Combat Bots Only 8 | . 3 2 6 8 4 . 1 . 1 . 3 . 1 1 3 3 3 . 3 3 . . 5 3 7 Max Kills in Single Turn 5 | 1 1 1 2 5 1 . 1 1 1 1 2 . 1 1 2 2 3 1 1 1 1 1 1 2 3 Gunslinging . | . . . . . . . . . . . . . . . . . . . . . . . . . . Exploded 3 | . . . 2 2 . . 1 . . . 2 . . 1 2 2 3 . . . . . . 2 3 Melee 1 | . . . . 1 . . 1 . 1 . . . 1 1 1 1 1 . 1 . . . 1 1 1 Uniques/NPCs Destroyed 1 | . . . . . . . . . . . . . . . . . . . . 1 . . . . . A7 (-5/Cetus) Combat | -11 -10 -10 -9 -9 -9 -9 -6 -6 -6 -6 -6 -6 -5 -5 -5 -5 -5 -5 -5 -5 -5 -5 -5 -4 -4 -------- Run | Yrd Mat Min Mat Sto Rec Scr Fac Was Fac Low Low Zio Pro Fac Gar Fac Gar Fac Ext Cet Arc Hub Gar Fac Arm Hostile Shots Fired 1128 | . 57 42 74 156 29 . 94 . 91 13 19 . . 2 85 35 20 5 102 3 . 8 111 99 83 Missed 414 | . 9 17 27 52 7 . 52 . 46 9 10 . . 1 30 10 5 2 34 1 . 5 41 35 21 Intercepted 10 | . . . . . . . . . . . . . . . . . . . . . . . . . 10 Hits 714 | . 48 25 47 104 22 . 42 . 45 4 9 . . 1 55 25 15 3 68 2 . 3 70 64 62 Melee 15 | . . 3 . . 3 . . . . 1 1 . . . 3 . 2 . . . . . . 1 1 Projectile 699 | . 48 22 47 104 19 . 42 . 45 3 8 . . 1 52 25 13 3 68 2 . 3 70 63 61 AOE 39 | . . . . . . . . . . . . . . . 2 . 3 . . . . . . . 34 Critical Strikes 31 | . 1 . 1 5 2 . 2 . . . 2 . . . 1 2 2 . 3 1 . . 4 5 . Part Disruptions 4 | . . . . . . . . . . . . . . . . . . . . . . . . . 4 Damage Taken 13473 | . 535 367 583 1109 378 . 537 69 548 90 261 . . 21 1351 699 431 92 1581 68 58 70 1161 1202 2262 Core 2590 | . 63 25 75 109 46 . 76 28 117 18 54 . . . 360 138 60 25 292 54 . . 219 163 668 Absorbed by Shields 84 | . . . . . . . 35 . 16 . . . . . . . . . 10 14 . . . 9 . Ignored by Resistances 618 | . . . 38 62 5 . 53 . 9 . 32 . . 3 76 51 11 3 56 . . 6 189 24 . Regen/Repaired (Parts) 383 | . . . . . . 198 31 31 37 . . 19 . . . . . . . . . . . 67 . Core Remaining (%) 62 | 100 . 81 . . . 14 . . . . . . 65 . . . . . . . . . 51 . . Volleys Fired 542 | 1 62 31 46 62 11 . 2 . . . 8 . . . 10 12 42 6 60 9 5 3 60 70 42 Largest 3 | 2 2 2 2 2 3 . 1 . . . 1 . . . 1 1 1 1 1 1 1 1 1 1 1 Hottest 136 | 40 100 83 136 91 114 . 43 . . . 43 . . . 43 113 43 113 113 113 113 113 113 120 120 Shots Fired 749 | 2 117 62 87 116 36 . 2 . . . 8 . . . 10 12 42 6 60 9 5 3 60 69 43 Gun 294 | 2 63 31 74 100 24 . . . . . . . . . . . . . . . . . . . . Cannon 273 | . 47 31 11 14 12 . . . . . 5 . . . . 4 . 3 28 5 3 1 36 40 33 Launcher 23 | . . . 2 2 . . 2 . . . 3 . . . 2 2 1 . . . . . . 2 7 Special 159 | . 7 . . . . . . . . . . . . . 8 6 41 3 32 4 2 2 24 27 3 Kinetic 234 | 2 63 31 43 27 24 . . . . . . . . . . . . . 14 . . . 30 . . Thermal 236 | . 54 31 11 19 12 . . . . . . . . . . 4 . 3 14 5 3 1 6 40 33 Explosive 27 | . . . 2 2 . . 2 . . . 3 . . . 2 2 1 . . 4 . . . 2 7 Electromagnetic 104 | . . . 31 68 . . . . . . 5 . . . . . . . . . . . . . . Robot Hit Streak 17 | 2 16 14 15 16 9 . . . . . 6 . . . 7 9 13 2 14 16 17 1 10 16 7 Robot Miss Streak 7 | . 4 3 3 7 1 . . . . . 1 . . . 2 1 2 1 2 . 1 1 3 2 1 Penetration Max . | . . . . . . . . . . . . . . . . . . . . . . . . . . Secondary Targets 6 | . . . 2 4 . . . . . . . . . . . . . . . . . . . . . Max Gunslinging Chain 1 | . . . 1 1 . . . . . . . . . . . . . . . . . . . . . Shots Hit Robots 729 | 2 67 44 63 89 72 2 10 8 8 3 6 . 6 10 39 24 44 14 69 16 3 3 52 53 22 Core Hits 340 | 1 29 22 43 72 11 . 4 3 3 1 5 . 3 6 18 13 7 3 17 18 1 . 13 24 23 Critical Kills 5 | . 1 . . 1 . . . . . . . . . . . . . . . 1 . . . 2 . Critical Parts Destroyed . | . . . . . . . . . . . . . . . . . . . . . . . . . . Critical Strikes 25 | . 1 . . 1 . . . . . . . . . 1 1 3 . 1 5 6 . . 3 3 . Meltdown 4 | . 1 . . . . . . . . . . . . . . . . . . 1 . . . 2 . Blast 3 | . . . . . . . . . . . . . . . . . . . 2 . . . 1 . . Smash 1 | . . . . 1 . . . . . . . . . . . . . . . . . . . . . Sever 2 | . . . . . . . . . . . . . . . . . . . . 2 . . . . . Impale 14 | . . . . . . . . . . . . . . 1 1 3 . 1 3 3 . . 1 1 . Sunder 1 | . . . . . . . . . . . . . . . . . . . . . . . 1 . . Melee Attacks 535 | . . . 4 6 46 2 22 8 77 5 2 . 10 39 71 54 25 35 31 7 1 9 34 39 8 Impact 10 | . . . 4 6 . . . . . . . . . . . . . . . . . . . . . Slashing 114 | . . . . . 5 . 21 8 75 5 . . . . . . . . . . . . . . . Piercing 367 | . . . . . . . . . 2 . 2 . 10 39 71 54 25 35 31 7 1 9 34 39 8 Sneak Attacks 117 | . . . . . 41 2 4 8 3 3 . . . 5 5 7 7 7 4 7 1 1 5 3 4 Combat Hostiles 5 | . . . . . . . 1 . 1 . . . . . 2 . . . . . . . . 1 . Follow-up Attacks 5 | . . . . . . . . . . . . . . . 2 2 1 . . . . . . . . Damage Inflicted 25166 | 23 1031 762 1739 2221 780 . 671 500 496 242 456 . 309 739 1734 1409 987 831 2005 1228 140 119 1922 2148 2674 Guns 3180 | 23 378 306 944 1267 262 . . . . . . . . . . . . . . . . . . . . Cannons 5462 | . 643 440 167 123 213 . . . . . 117 . . . . . . . 731 205 39 . 1318 745 721 Explosions 5210 | . . . 628 701 . . 256 . . . 339 . . . 255 268 171 . . 453 . . . 530 1609 Melee 11127 | . . . . 130 293 . 415 500 496 242 . . 309 739 1479 1141 816 831 1274 421 101 119 604 873 344 Ramming 38 | . 10 16 . . 12 . . . . . . . . . . . . . . . . . . . . Kinetic 3147 | 23 378 306 414 241 262 . . . . . . . . . . . . . 426 . . . 1097 . . Thermal 4432 | . 643 440 574 425 213 . . . . . . . . . . . . . 305 205 39 . 122 745 721 Explosive 4423 | . . . 221 422 . . 256 . . . 339 . . . 255 268 171 . . 453 . . . 429 1609 Electromagnetic 1751 | . . . 530 1003 . . . . . . 117 . . . . . . . . . . . . 101 . Impact 130 | . . . . 130 . . . . . . . . . . . . . . . . . . . . . Slashing 2095 | . . . . . 293 . 415 500 496 242 . . . . . . . . . 149 . . . . . Piercing 9051 | . . . . . . . . . . . . . 309 739 1479 1141 816 831 1274 421 101 119 604 873 344 Entropic 99 | . . . . . . . . . . . . . . . . . . . . . . . 99 . . Highest Corruption 21 | . . . . 10 11 . . 14 21 11 19 . . . . 2 7 7 2 . . . 3 1 13 Average Corruption 6 | . . . . 3 10 . . 14 5 11 18 . . . . 1 5 7 1 . . . 2 1 4 Corruption Purged . | . . . . . . . . . . . . . . . . . . . . . . . . . . Corruption Blocked . | . . . . . . . . . . . . . . . . . . . . . . . . . . Effects 117 | . . . . 5 37 . . 6 10 6 2 . . . . 4 13 16 1 . . . 5 3 9 Message Errors 32 | . . . . 2 11 . . . 3 2 . . . . . 1 3 5 . . . . 2 . 3 Matter Fused 28 | . . . . 2 13 . . 2 1 . . . . . . 1 2 6 . . . . . 1 . Heat Flow Errors 15 | . . . . 1 5 . . . 1 . 1 . . . . . 3 3 . . . . . . 1 Energy Discharges 11 | . . . . . 3 . . 1 . 1 1 . . . . 1 1 2 . . . . . 1 . Parts Fused 1 | . . . . . . . . . . 1 . . . . . . . . . . . . . . . Data Loss (minor) 15 | . . . . . 2 . . . 3 2 . . . . . 1 2 . . . . . 2 . 3 Data Loss (major) 3 | . . . . . . . . . . . . . . . . . 1 . 1 . . . 1 . . Misfires 4 | . . . . . 3 . . . . . . . . . . . . . . . . . . . 1 Alerts 2 | . . . . . . . . . . . . . . . . . 1 . . . . . . . 1 Misdirections 5 | . . . . . . . . 3 2 . . . . . . . . . . . . . . . . Weapon Failures 1 | . . . . . . . . . . . . . . . . . . . . . . . . 1 . Overload Shots . | . . . . . . . . . . . . . . . . . . . . . . . . . . Overflow Damage 1741 | . . 20 8 95 74 . 55 31 123 100 . . 30 96 43 171 110 154 70 . . 34 182 300 45 Projectiles 151 | . . 20 . . 10 . . . . . . . . . . . . . . . . . 84 . 37 Explosions 201 | . . . 8 64 . . 35 . . . . . . . 19 28 14 . . . . . . 26 7 Melee 1389 | . . . . 31 64 . 20 31 123 100 . . 30 96 24 143 96 154 70 . . 34 98 274 1 Knockbacks 4 | . . . . . . . . . . . . . . . . . . . . . . . 4 . . Impact . | . . . . . . . . . . . . . . . . . . . . . . . . . . Kinetic 4 | . . . . . . . . . . . . . . . . . . . . . . . 4 . . Secondary . | . . . . . . . . . . . . . . . . . . . . . . . . . . Self-Inflicted Damage 116 | . . . 50 8 . . . . . . 46 . . . . . . . . . . . . 12 . Shots 6 | . . . 3 1 . . . . . . 1 . . . . . . . . . . . . 1 . Rammed 10 | . 3 4 . . 3 . . . . . . . . . . . . . . . . . . . . Targets Rammed 10 | . 3 4 . . 3 . . . . . . . . . . . . . . . . . . . . Kicked . | . . . . . . . . . . . . . . . . . . . . . . . . . . Crushed . | . . . . . . . . . . . . . . . . . . . . . . . . . . Highest Temperature 336 | . 183 186 261 288 327 . 32 57 138 . 336 . . 2 . 152 286 247 312 260 92 213 336 327 335 Average Temperature 64 | . 55 68 46 54 111 . 11 36 25 . 149 . . 2 . 28 121 49 61 78 49 29 99 91 76 Received Heat Transfer 2265 | . 243 208 225 312 39 . 193 . 30 . 310 . . 9 201 108 45 9 166 . . 27 39 101 . Effects 5 | . . . . . . . . . . . 2 . . . . . . . 3 . . . . . . Energy Bleed 1 | . . . . . . . . . . . 1 . . . . . . . . . . . . . . Interference 3 | . . . . . . . . . . . . . . . . . . . 3 . . . . . . Matter Decay 1 | . . . . . . . . . . . 1 . . . . . . . . . . . . . . Siege Activations . | . . . . . . . . . . . . . . . . . . . . . . . . . . Martial Activations . | . . . . . . . . . . . . . . . . . . . . . . . . . . Shielding Activations . | . . . . . . . . . . . . . . . . . . . . . . . . . . Robots Disrupted 1 | . . . . 1 . . . . . . . . . . . . . . . . . . . . . Combat Hostiles 1 | . . . . 1 . . . . . . . . . . . . . . . . . . . . . Robots Corrupted 2 | . . . . 2 . . . . . . . . . . . . . . . . . . . . . Combat Hostiles 2 | . . . . 2 . . . . . . . . . . . . . . . . . . . . . Parts Fried 10 | . . . . 9 . . . . . . . . . . . . . . . 1 . . . . . Impact Corruptions 1 | . . . . 1 . . . . . . . . . . . . . . . . . . . . . Robots Melted 5 | . 1 . 1 . . . . . . . . . . . . . . . . 1 . . . 2 . Combat Hostiles 4 | . 1 . . . . . . . . . . . . . . . . . . 1 . . . 2 . Parts Melted 14 | . 2 . 3 . . . . . . . . . . . 1 . . . 3 . . . . 5 . Heat Transferred 5841 | . 1369 925 846 552 299 . . . . . . . . . . . . . 259 185 37 . 111 629 629 Parts Sabotaged 6 | . . . . . . . . . . . . . . . . . . . . . . . . 2 4 Parts Stolen . | . . . . . . . . . . . . . . . . . . . . . . . . . . Parts Stripped . | . . . . . . . . . . . . . . . . . . . . . . . . . . Power Chain Reactions 10 | . . . 6 4 . . . . . . . . . . . . . . . . . . . . . Alert | -11 -10 -10 -9 -9 -9 -9 -6 -6 -6 -6 -6 -6 -5 -5 -5 -5 -5 -5 -5 -5 -5 -5 -5 -4 -4 ------- Run | Yrd Mat Min Mat Sto Rec Scr Fac Was Fac Low Low Zio Pro Fac Gar Fac Gar Fac Ext Cet Arc Hub Gar Fac Arm Maximum Alert Level 3 | . . 2 1 3 1 . . . 2 . . . . . 2 2 3 2 1 1 . 2 3 2 2 Low Security (%) 46 | 100 100 28 13 21 70 . 100 100 75 . . . . 100 58 . . 8 90 48 100 30 3 49 6 Level 1 33 | . . 64 86 7 29 . . . 10 . . . . . 8 98 6 74 9 51 . 55 27 48 19 Level 2 13 | . . 6 . 28 . . . . 14 . . . . . 33 1 37 16 . . . 13 55 2 73 Level 3 6 | . . . . 42 . . . . . . . . . . . . 56 . . . . . 13 . . Level 4 . | . . . . . . . . . . . . . . . . . . . . . . . . . . Level 5 . | . . . . . . . . . . . . . . . . . . . . . . . . . . High Security . | . . . . . . . . . . . . . . . . . . . . . . . . . . Max Security . | . . . . . . . . . . . . . . . . . . . . . . . . . . Peak Influence 852 | 5 152 427 393 751 268 . 65 18 514 . . . . 60 629 405 852 444 313 301 172 412 737 447 672 Initial 444 | . . 49 120 122 268 . . 4 . . . . . . 12 329 276 444 92 98 100 49 171 375 215 Average 261 | . 43 267 270 531 150 . 25 2 156 . . . . 26 266 304 682 306 123 207 122 242 507 197 453 Influence Increases 12605 | 5 589 706 745 1100 256 . 241 33 1132 60 242 . 112 354 817 674 861 121 1098 353 171 506 666 968 795 Destroy 0b10 Robot/C 5220 | . 360 80 480 680 120 . 60 . 180 . 100 . 60 60 500 280 420 . 460 160 80 140 300 380 320 Destroy 0b10 Robot/NC 375 | 5 25 . 45 65 20 . 10 . 15 . . . 5 20 . 40 . 20 45 10 5 10 10 20 5 Destroy Leader 828 | . 84 10 76 188 . . 10 . 42 . 10 . 10 22 20 74 30 2 44 . . 42 50 72 42 Allied During Kill 1039 | . . . . . 23 . 4 . 56 . 27 . 37 15 63 47 97 . 150 127 82 187 29 65 30 Trap Triggered on 0b10 20 | . . . . . . . . . . . . . . . . . . . . . . 20 . . . Successful Hack 231 | . 35 . 13 11 . . . . 42 . . . . 42 . 2 . 8 25 . . 20 14 15 4 Select Force Hacks 150 | . 60 . . . 90 . . . . . . . . . . . . . . . . . . . . Disable Machine 525 | . 15 . 45 75 . . . . 60 . . . . . 15 30 15 . 75 . . . . 120 75 Anti-Garrison Action 450 | . . . . . . . . . . . . . . . . . 250 . . . . . 200 . . Destroy Structure 1204 | . 10 . 71 51 3 . 37 18 61 . . . . 60 159 66 34 46 18 56 4 72 48 176 214 Partial Spotted 315 | . . . . 15 . . . 15 165 . . . . . 30 15 . 15 . . . 15 15 30 . Lose Combat Pursuer 1110 | . . . 15 15 . . 120 . 255 60 105 . . 135 30 120 15 30 15 . . . . 90 105 Miscellaneous 1138 | . . 616 . . . . . . 256 . . . . . . . . . 266 . . . . . . Influence Decreases 12061 | 5 461 523 765 701 848 98 227 47 729 240 393 72 112 336 206 908 409 779 1110 279 281 402 194 1244 692 Entered New Map 3123 | . . 79 191 169 422 98 . 10 . 150 43 72 . . 6 300 119 403 97 79 151 92 74 342 226 Time Decay 6037 | 5 441 434 534 482 416 . 162 37 407 80 230 . 112 264 . 478 . 326 555 180 80 140 . 428 246 Search Patrol Dispatched 100 | . . . . . . . . . 100 . . . . . . . . . . . . . . . . Lost Part 830 | . 20 10 40 50 . . 20 . 60 10 40 . . . 140 60 30 10 110 . 10 . 20 30 170 Lost Ally 1789 | . . . . . 10 . 45 . 162 . 80 . . 40 60 70 260 40 348 20 40 170 100 294 50 Purge Threat 182 | . . . . . . . . . . . . . . 32 . . . . . . . . . 150 . Squads Dispatched 84 | . 5 1 2 6 . . 10 . 15 . . . . 8 . 13 . 5 2 . . 2 . 12 3 Investigation 36 | . 2 1 1 . . . 6 . 7 . . . . 5 . 4 . 4 . . . . . 6 . Extermination 17 | . . . . . . . 1 . 5 . . . . 1 . 5 . 1 . . . 1 . 2 1 Reinforcement 19 | . 3 . 1 1 . . . . 3 . . . . 2 . 4 . . 2 . . . . 2 1 Assault 5 | . . . . 2 . . . . . . . . . . . . . . . . . . . 2 1 Garrison 7 | . . . . 3 . . 3 . . . . . . . . . . . . . . 1 . . . Intercept . | . . . . . . . . . . . . . . . . . . . . . . . . . . Searches Triggered 1 | . . . . . . . . . 1 . . . . . . . . . . . . . . . . Construction Impeded 4 | . . . 1 1 . . . . . . . . . . . . . . 1 . . . . 1 . Haulers Reinforced 1 | . . . . . . . . . . . . . . 1 . . . . . . . . . . . Active Scanning Responses . | . . . . . . . . . . . . . . . . . . . . . . . . . . Cargo Convoy Interrupts 2 | . . . . . . . . . . . . . . . . 1 . . . . . . . 1 . Alert ID Control Effect 31 | . . . . . . . . . . . . . . . . . . . . . . . 2 17 12 Stealth | -11 -10 -10 -9 -9 -9 -9 -6 -6 -6 -6 -6 -6 -5 -5 -5 -5 -5 -5 -5 -5 -5 -5 -5 -4 -4 --------- Run | Yrd Mat Min Mat Sto Rec Scr Fac Was Fac Low Low Zio Pro Fac Gar Fac Gar Fac Ext Cet Arc Hub Gar Fac Arm Distress Signals 28 | . 3 . 2 5 . . . . 3 . . . . . . 3 . . . 2 . 1 . 3 6 Communications Jammed . | . . . . . . . . . . . . . . . . . . . . . . . . . . Distress Signals . | . . . . . . . . . . . . . . . . . . . . . . . . . . Times Spotted 508 | . 33 11 28 45 8 . 30 11 40 10 13 . 3 16 23 27 34 9 28 10 2 12 23 53 39 Peak Tracking Total 11 | . 5 2 6 8 5 . 6 5 11 7 4 . 3 3 6 7 5 3 4 5 1 4 3 7 9 Tactical Retreats 50 | . . 2 1 1 . . 8 1 10 2 4 . . 7 1 3 1 2 1 . . . . 3 3 ECM-based Alert Blocks 16 | . . . . . . . 8 . 8 . . . . . . . . . . . . . . . . Traps | -11 -10 -10 -9 -9 -9 -9 -6 -6 -6 -6 -6 -6 -5 -5 -5 -5 -5 -5 -5 -5 -5 -5 -5 -4 -4 ------- Run | Yrd Mat Min Mat Sto Rec Scr Fac Was Fac Low Low Zio Pro Fac Gar Fac Gar Fac Ext Cet Arc Hub Gar Fac Arm Traps Triggered 28 | . 1 . 1 1 . . 3 . 1 . . . . . 2 . 7 3 2 . . . 6 1 . Indirectly . | . . . . . . . . . . . . . . . . . . . . . . . . . . Trap Hack Attempts . | . . . . . . . . . . . . . . . . . . . . . . . . . . Triggered . | . . . . . . . . . . . . . . . . . . . . . . . . . . Disarmed . | . . . . . . . . . . . . . . . . . . . . . . . . . . Reprogrammed 6 | . . . . . . . . . . . . . . . . . . . . . . 6 . . . Reused 2 | . . . . . . . . . . . . . . . . . . . . . . 2 . . . Traps Extracted . | . . . . . . . . . . . . . . . . . . . . . . . . . . Installed 3 | . . . . . . . 1 . . . 1 . . 1 . . . . . . . . . . . Triggered 2 | . . . . . . . . . . . . . . . . . . . . . . 2 . . . Most Traps Carried 1 | . . . . . . . 1 . . . . . . 1 . . . . . . . . . . . Machines | -11 -10 -10 -9 -9 -9 -9 -6 -6 -6 -6 -6 -6 -5 -5 -5 -5 -5 -5 -5 -5 -5 -5 -5 -4 -4 ---------- Run | Yrd Mat Min Mat Sto Rec Scr Fac Was Fac Low Low Zio Pro Fac Gar Fac Gar Fac Ext Cet Arc Hub Gar Fac Arm Machines Disabled 50 | . 1 . 3 5 . . . . 4 . . . 1 . 3 2 6 . 5 . . . 5 10 5 Max in Single Turn 3 | . 1 . 3 1 . . . . 1 . . . 1 . 1 1 1 . 1 . . . 1 1 2 Garrison Access 5 | . . . . . . . . . 1 . . . . 1 . . . . . . . . . 3 . Garrison Relay 9 | . . . . . . . . . . . . . . . . . 5 . . . . . 4 . . Phase Generator 1 | . . . . . . . . . . . . . . . 1 . . . . . . . . . . Network Hub 1 | . . . . . . . . . . . . . . . . . . . . . . 1 . . . Energy Cycler 1 | . . . . . . . . . . . . . . . . . . . . . . . . . 1 Machines Repaired . | . . . . . . . . . . . . . . . . . . . . . . . . . . Machines Dismantled . | . . . . . . . . . . . . . . . . . . . . . . . . . . Machines Sabotaged . | . . . . . . . . . . . . . . . . . . . . . . . . . . Overloaded Fab Kills . | . . . . . . . . . . . . . . . . . . . . . . . . . . Hacking | -11 -10 -10 -9 -9 -9 -9 -6 -6 -6 -6 -6 -6 -5 -5 -5 -5 -5 -5 -5 -5 -5 -5 -5 -4 -4 --------- Run | Yrd Mat Min Mat Sto Rec Scr Fac Was Fac Low Low Zio Pro Fac Gar Fac Gar Fac Ext Cet Arc Hub Gar Fac Arm Machines Accessed 117 | . 5 1 5 6 3 3 7 . 24 . . . 1 11 1 8 1 6 8 . . 5 3 17 2 Terminals 54 | . 3 1 3 6 . . . . 10 . . . 1 4 1 2 1 2 8 . . 4 3 3 2 Fabricators 5 | . . . . . . . . . 2 . . . . . . . . . . . . . . 3 . Repair Stations 4 | . . . . . . . 1 . 2 . . . . . . . . . . . . . . 1 . Recycling Units 33 | . 2 . . . 3 . 5 . 6 . . . . 4 . 4 . 4 . . . . . 5 . Scanalyzers 9 | . . . 2 . . . . . 2 . . . . 1 . 1 . . . . . . . 3 . Garrison Access 9 | . . . . . . . 1 . 2 . . . . 2 . 1 . . . . . 1 . 2 . Total Hacks 209 | . 10 1 11 12 3 18 11 . 40 . . . 1 16 1 14 2 9 14 . . 11 5 25 5 Successful 125 | . 8 . 4 6 3 18 6 . 22 . . . 1 12 1 9 . 6 3 . . 5 2 17 2 Failed 84 | . 2 1 7 6 . . 5 . 18 . . . . 4 . 5 2 3 11 . . 6 3 8 3 Catastrophic 19 | . . . 2 . . . 3 . 3 . . . . . . 1 . 1 3 . . 2 2 2 . Database Lockouts . | . . . . . . . . . . . . . . . . . . . . . . . . . . Manual 104 | . 9 1 4 1 3 . 10 . 20 . . 1 . 8 . 6 . 8 6 1 . 10 1 12 3 Terminals 104 | . 8 1 8 12 . . . . 18 . . . 1 8 1 3 2 5 14 . . 10 5 3 5 Fabricators 11 | . . . . . . . . . 5 . . . . . . . . . . . . . . 6 . Repair Stations 8 | . . . . . . . 1 . 5 . . . . . . . . . . . . . . 2 . Recycling Units 41 | . 2 . . . 3 . 9 . 7 . . . . 5 . 5 . 4 . . . . . 6 . Scanalyzers 17 | . . . 3 . . . . . 2 . . . . 1 . 5 . . . . . . . 6 . Garrison Access 10 | . . . . . . . 1 . 3 . . . . 2 . 1 . . . . . 1 . 2 . Terminal Hacks 48 | . 3 . 3 6 . 18 . . 5 . . . 1 3 1 . . 1 1 . . 2 2 1 1 Record 19 | . . . . . . 17 . . 1 . . . 1 . . . . . . . . . . . . Part Schematic 1 | . 1 . . . . . . . . . . . . . . . . . . . . . . . . Robot Analysis 2 | . . . . 1 . . . . . . . . . 1 . . . . . . . . . . . Prototype ID Bank 1 | . . . 1 . . . . . . . . . . . . . . . . . . . . . . Open Door 3 | . . . . 2 . . . . . . . . . . . . . . 1 . . . . . . Level Access Points 1 | . . . . . . . . . . . . . . . . . . . . . . 1 . . . Branch Access Points 2 | . . . 1 . . . . . . . . . . . . . . 1 . . . . . . . Emergency Access Points 1 | . . . . . . . . . . . . . . . . . . . . . . . 1 . . Unreport Threat 2 | . . . . . . . . . . . . . . 1 . . . . . . . . . 1 . Locate Traps 7 | . 1 . . 3 . . . . 1 . . . . 1 . . . . . . . . . . 1 Reprogram Traps 1 | . . . . . . . . . . . . . . . . . . . . . . 1 . . . Recall Extermination 1 | . . . . . . . . . 1 . . . . . . . . . . . . . . . . Hauler Manifests 1 | . . . 1 . . . . . . . . . . . . . . . . . . . . . . Registered Components 2 | . 1 . . . . . . . 1 . . . . . . . . . . . . . . . . Zone Layout 1 | . . . . . . . . . 1 . . . . . . . . . . . . . . . . Garrison Registry 2 | . . . . . . . . . . . . . . . 1 . . . . . . . 1 . . Proto ID Catalog 1 | . . . . . . 1 . . . . . . . . . . . . . . . . . . . Fabricator Hacks 2 | . . . . . . . . . 1 . . . . . . . . . . . . . . 1 . Network Status 2 | . . . . . . . . . 1 . . . . . . . . . . . . . . 1 . Repair Station Hacks 4 | . . . . . . . . . 3 . . . . . . . . . . . . . . 1 . Scan Component 2 | . . . . . . . . . 1 . . . . . . . . . . . . . . 1 . Repair 1 | . . . . . . . . . 1 . . . . . . . . . . . . . . . . Refit 1 | . . . . . . . . . 1 . . . . . . . . . . . . . . . . Recycling Unit Hacks . | . . . . . . . . . . . . . . . . . . . . . . . . . . Scanalyzer 11 | . . . 1 . . . . . 2 . . . . 1 . 3 . . . . . . . 4 . Insert Component 1 | . . . . . . . . . . . . . . . . 1 . . . . . . . . . Analyze 1 | . . . . . . . . . . . . . . . . 1 . . . . . . . . . Retrieve Study 9 | . . . 1 . . . . . 2 . . . . 1 . 1 . . . . . . . 4 . Garrison Access Hacks 7 | . . . . . . . . . 1 . . . . 2 . 1 . . . . . 1 . 2 . Unlock Access 3 | . . . . . . . . . . . . . . 1 . 1 . . . . . 1 . . . Seal Access 4 | . . . . . . . . . 1 . . . . 1 . . . . . . . . . 2 . Unauthorized Hacks 53 | . 5 . . . 3 . 6 . 10 . . . . 6 . 5 . 5 2 . . 2 . 8 1 Terminals 16 | . 3 . . . . . . . 3 . . . . 2 . 1 . 1 2 . . 2 . 1 1 Track 1 | . . . . . . . . . . . . . . . . . . . . . . 1 . . . Assimilate 5 | . 1 . . . . . . . 1 . . . . . . . . . 1 . . . . 1 1 Botnet 7 | . 1 . . . . . . . 1 . . . . 1 . 1 . 1 1 . . 1 . . . Operators 3 | . 1 . . . . . . . 1 . . . . 1 . . . . . . . . . . . Fabricators 3 | . . . . . . . . . 1 . . . . . . . . . . . . . . 2 . Haulers 3 | . . . . . . . . . 1 . . . . . . . . . . . . . . 2 . Repair Stations 1 | . . . . . . . 1 . . . . . . . . . . . . . . . . . . Patch 1 | . . . . . . . 1 . . . . . . . . . . . . . . . . . . Recycling Units 33 | . 2 . . . 3 . 5 . 6 . . . . 4 . 4 . 4 . . . . . 5 . Tunnel 5 | . 2 . . . 3 . . . . . . . . . . . . . . . . . . . . Fedlink 27 | . . . . . . . 5 . 6 . . . . 4 . 4 . 4 . . . . . 4 . Scraphulk 1 | . . . . . . . . . . . . . . . . . . . . . . . . 1 . Scanalyzers . | . . . . . . . . . . . . . . . . . . . . . . . . . . Garrison Access . | . . . . . . . . . . . . . . . . . . . . . . . . . . Data Cores Recovered 2 | . . . . . . . . . 1 . . . . . . . . . . . . . . 1 . Used . | . . . . . . . . . . . . . . . . . . . . . . . . . . Hacking Detections 55 | . 3 1 3 2 . . 3 . 13 . . . . 5 . 2 1 2 7 . . 5 2 5 1 Full Trace Events 1 | . . . . . . . . . 1 . . . . . . . . . . . . . . . . Feedback Events . | . . . . . . . . . . . . . . . . . . . . . . . . . . Feedback Blocked . | . . . . . . . . . . . . . . . . . . . . . . . . . . Robot Schematics Acquired . | . . . . . . . . . . . . . . . . . . . . . . . . . . Robots Built . | . . . . . . . . . . . . . . . . . . . . . . . . . . Authchips . | . . . . . . . . . . . . . . . . . . . . . . . . . . Time . | . . . . . . . . . . . . . . . . . . . . . . . . . . Total Robot Build Rating . | . . . . . . . . . . . . . . . . . . . . . . . . . . Part Schematics Acquired 2 | . 1 . . . . . . . . . . . . . . 1 . . . . . . . . . Parts Built . | . . . . . . . . . . . . . . . . . . . . . . . . . . Authchips . | . . . . . . . . . . . . . . . . . . . . . . . . . . Time . | . . . . . . . . . . . . . . . . . . . . . . . . . . Total Part Build Rating . | . . . . . . . . . . . . . . . . . . . . . . . . . . Part Studies Acquired 9 | . . . 1 . . . . . 2 . . . . 1 . 1 . . . . . . . 4 . Parts Repaired 1 | . . . . . . . . . 1 . . . . . . . . . . . . . . . . Time 50 | . . . . . . . . . 50 . . . . . . . . . . . . . . . . Parts Recycled . | . . . . . . . . . . . . . . . . . . . . . . . . . . Recycled Matter . | . . . . . . . . . . . . . . . . . . . . . . . . . . Retrieved Matter . | . . . . . . . . . . . . . . . . . . . . . . . . . . Retrieved Components . | . . . . . . . . . . . . . . . . . . . . . . . . . . Parts Scanalyzed 1 | . . . . . . . . . . . . . . . . 1 . . . . . . . . . Part Schematics Acquired 1 | . . . . . . . . . . . . . . . . 1 . . . . . . . . . Parts Damaged . | . . . . . . . . . . . . . . . . . . . . . . . . . . Bothacking | -11 -10 -10 -9 -9 -9 -9 -6 -6 -6 -6 -6 -6 -5 -5 -5 -5 -5 -5 -5 -5 -5 -5 -5 -4 -4 ------------ Run | Yrd Mat Min Mat Sto Rec Scr Fac Was Fac Low Low Zio Pro Fac Gar Fac Gar Fac Ext Cet Arc Hub Gar Fac Arm Used RIF Installer 3 | . . . . . . . . . . . . . . . 1 . 1 . . . . . 1 . . Robot Detection 1 | . . . . . . . . . . . . . . . . . 1 . . . . . . . . Alert ID Control 1 | . . . . . . . . . . . . . . . . . . . . . . . 1 . . Crosswire 1 | . . . . . . . . . . . . . . . 1 . . . . . . . . . . Robots Hacked 72 | . . . . . . 2 1 . . . . . . . . 3 21 2 3 . 1 2 15 20 2 Non-combat 8 | . . . . . . . 1 . . . . . . . . . . . 1 . . . . 6 . Combat 64 | . . . . . . 2 . . . . . . . . . 3 21 2 2 . 1 2 15 14 2 Robot Hacks Applied 73 | . . . . . . 2 1 . . . . . . . . 3 21 2 3 . 1 2 16 20 2 parse_system 5 | . . . . . . 2 . . . . . . . . . . 1 . . . 1 . 1 . . find_chute 2 | . . . . . . . 1 . . . . . . . . . . . . . . . . 1 . ignore_repairs 3 | . . . . . . . . . . . . . . . . . . . 1 . . . . 2 . drop_inventory 1 | . . . . . . . . . . . . . . . . . . . . . . . . 1 . find_recycling 1 | . . . . . . . . . . . . . . . . . . . . . . . . 1 . amplify_resonance 1 | . . . . . . . . . . . . . . . . . 1 . . . . . . . . reboot_system 9 | . . . . . . . . . . . . . . . . . 4 . . . . . 2 2 1 overwrite_iff 15 | . . . . . . . . . . . . . . . . . 6 . . . . 2 4 3 . formatsys_low 1 | . . . . . . . . . . . . . . . . . . . . . . . . 1 . formatsys_high 35 | . . . . . . . . . . . . . . . . 3 9 2 2 . . . 9 9 1 Relay Couplers Released 35 | . . . . . . . . . . . . . . . . . 19 . . . . . 14 2 . Machine Destruction 35 | . . . . . . . . . . . . . . . . . 19 . . . . . 14 2 . Attached 19 | . . . . . . . . . . . . . . . . 2 6 1 . 1 . . 6 3 . Crosswired 16 | . . . . . . . . . . . . . . . 1 . 9 . . . . . 5 1 . Fabnet Peak Effective % . | . . . . . . . . . . . . . . . . . . . . . . . . . . Robots Rewired 40 | . . . . . 17 . . . . . . . . . 4 . 3 . 15 . . . . 1 . Allies Hacked 5 | . . . . . . . . . 1 . . . . . . . 1 1 2 . . . . . . Hacks Repelled . | . . . . . . . . . . . . . . . . . . . . . . . . . . Allies | -11 -10 -10 -9 -9 -9 -9 -6 -6 -6 -6 -6 -6 -5 -5 -5 -5 -5 -5 -5 -5 -5 -5 -5 -4 -4 -------- Run | Yrd Mat Min Mat Sto Rec Scr Fac Was Fac Low Low Zio Pro Fac Gar Fac Gar Fac Ext Cet Arc Hub Gar Fac Arm Total Allies 148 | . . . 4 . 17 . . 19 1 . 5 2 . . 6 3 18 2 26 5 . 5 13 20 2 Largest Group 17 | . . . 4 . 17 16 16 17 12 . 5 2 2 2 3 4 6 2 11 11 8 9 7 8 3 Highest-Rated Group 731 | . . . 40 . 301 293 292 625 442 . 155 192 192 192 129 178 191 82 322 731 529 463 241 299 177 Highest-Rated Ally 159 | . . . 10 . 34 34 34 79 46 . 31 96 96 96 99 54 54 49 159 159 96 96 49 123 64 Initial UFD Resources 107 | . . . . . . . 22 42 42 54 54 54 56 56 74 74 82 82 90 90 90 90 90 94 107 Total Orders 48 | . . . . . . 12 3 . 3 . . . . . 2 8 2 . 5 2 2 3 5 1 . STAY 11 | . . . . . . 3 . . . . . . . . 1 . 1 . . 1 1 1 3 . . ROAM 1 | . . . . . . . . . . . . . . . . . . . 1 . . . . . . FOLLOW 11 | . . . . . . 3 . . . . . . . . 1 . 1 . . 1 1 2 2 . . AID 5 | . . . . . . . . . . . . . . . . . . . 4 . . . . 1 . DROP 1 | . . . . . . 1 . . . . . . . . . . . . . . . . . . . PICKUP 4 | . . . . . . 4 . . . . . . . . . . . . . . . . . . . COLLECT 1 | . . . . . . 1 . . . . . . . . . . . . . . . . . . . EXPLORE 8 | . . . . . . . . . . . . . . . . 8 . . . . . . . . . RETURN 6 | . . . . . . . 3 . 3 . . . . . . . . . . . . . . . . Ally Attacks 946 | . . . . . 22 . 14 68 66 . 57 . 20 22 27 37 127 3 119 48 21 47 69 144 35 Total Damage 23438 | . . . . . 190 . 544 2482 1512 . 730 . 737 524 1219 1299 1977 114 2653 1525 997 1328 1095 3624 888 Kills 148 | . . . . . 3 . 3 7 9 . 2 . 2 1 10 11 16 . 20 7 4 9 6 26 12 Allies Corrupted 9 | . . . . . . . . . 1 . . . . . . . . 1 1 . . 5 . 1 . Allies Melted 2 | . . . . . . . . . . . . . . . . . . . 1 . . . . 1 . X0-1V1 Amusement Gains 293 | . 10 20 . 60 . . 10 2 . . . . . . 98 . 3 . 20 . . 10 . 30 30 Good Acts 195 | . . 3 10 4 1 . 6 10 23 6 17 . 6 9 13 13 12 6 16 5 1 5 12 9 8 Bad Acts 153 | . . 7 3 6 4 . 7 8 27 3 21 . 3 11 . 8 3 5 11 1 . 1 8 11 5 Intel | -11 -10 -10 -9 -9 -9 -9 -6 -6 -6 -6 -6 -6 -5 -5 -5 -5 -5 -5 -5 -5 -5 -5 -5 -4 -4 ------- Run | Yrd Mat Min Mat Sto Rec Scr Fac Was Fac Low Low Zio Pro Fac Gar Fac Gar Fac Ext Cet Arc Hub Gar Fac Arm Active Infowar (turns) 14844 | 51 1300 . 558 647 . . 242 257 950 153 380 384 373 599 764 1223 961 733 1657 372 172 292 1115 1138 523 Optics 9524 | . . . . . . . . . . . . . . 574 764 1223 961 733 1657 372 172 292 1115 1138 523 Sensors 6646 | . . . . . . . 139 257 835 153 345 384 371 598 5 1057 . 466 931 84 62 276 . 448 235 IFF 58 | . . . . . . . 55 . 3 . . . . . . . . . . . . . . . . Structural 1100 | . . . . . . . 21 . 12 . 118 . 347 599 3 . . . . . . . . . . Traps 2 | . . . . . . . . . 2 . . . . . . . . . . . . . . . . Seismic 2556 | 51 1300 . 558 647 . . . . . . . . . . . . . . . . . . . . . Spoofing 1 | . . . . . . . . . 1 . . . . . . . . . . . . . . . . Jamming 157 | . . . . . . . . . . . . . . 11 . 12 113 . . . . . . . 21 ECM 283 | . . . . . . . 114 27 142 . . . . . . . . . . . . . . . . Robot Analysis Total 2 | . . . . 1 . . . . . . . . . 1 . . . . . . . . . . . Derelict Logs Recovered 10 | . . 3 . . . . . . . 1 3 1 2 . . . . . . . . . . . . Drone Launches 29 | . . . . . . . 9 . 11 . . . . . . 9 . . . . . . . . . Drone Recoveries 24 | . . . . . . . 9 . 8 . . . . . . 7 . . . . . . . . . Exploration | -11 -10 -10 -9 -9 -9 -9 -6 -6 -6 -6 -6 -6 -5 -5 -5 -5 -5 -5 -5 -5 -5 -5 -5 -4 -4 ------------- Run | Yrd Mat Min Mat Sto Rec Scr Fac Was Fac Low Low Zio Pro Fac Gar Fac Gar Fac Ext Cet Arc Hub Gar Fac Arm Turns Passed 21257 | 127 1349 1078 1517 1242 1018 2125 474 261 1101 162 496 385 373 599 764 1223 961 733 1657 372 172 292 1115 1138 523 Spaces Moved 23190 | 67 645 551 721 567 551 1531 1097 488 2668 497 1190 751 688 1117 900 1551 1350 943 1524 211 86 351 1195 1355 595 Core 9 | 2 . . . . . . . . . . . . . . . . . . 7 . . . . . . Treads 3811 | 65 645 551 721 567 551 711 . . . . . . . . . . . . . . . . . . . Legs . | . . . . . . . . . . . . . . . . . . . . . . . . . . Wheels . | . . . . . . . . . . . . . . . . . . . . . . . . . . Hover 9535 | . . . . . . . . . . . 31 . . . 479 1422 1350 943 1517 211 86 351 1195 1355 595 Flight 9835 | . . . . . . 820 1097 488 2668 497 1159 751 688 1117 421 129 . . . . . . . . . Fastest Speed 22 | 50 160 160 160 160 160 104 25 31 22 29 29 37 37 34 34 43 56 52 48 53 56 49 48 43 43 Average Speed 65 | 156 160 160 160 160 160 130 28 31 28 29 35 37 38 34 47 61 56 55 57 53 60 58 55 48 51 Slowest Speed 200 | 160 160 160 160 160 160 160 31 31 31 29 51 37 39 39 120 180 56 62 200 56 129 59 118 157 133 Overloaded Moves . | . . . . . . . . . . . . . . . . . . . . . . . . . . Propulsion Burnouts . | . . . . . . . . . . . . . . . . . . . . . . . . . . Robots Hopped 35 | . . . . . . . . . 23 1 1 . . 10 . . . . . . . . . . . Potential Cave-ins . | . . . . . . . . . . . . . . . . . . . . . . . . . . Cave-ins Triggered . | . . . . . . . . . . . . . . . . . . . . . . . . . . Exploration Rate (%) 65 | 4 89 98 62 81 89 81 20 96 72 72 94 84 83 27 67 46 80 25 98 60 83 26 87 40 37 Regions Visited 25 Branch Regions 13 Pre-discovered Areas 16 | . 2 3 . . 3 4 1 . . . 1 2 . . . . . . . . . . . . . Known Exits Taken 14 | . . . 1 . . . . . 1 1 1 1 1 1 . 1 . 1 1 1 1 1 . 1 . Unknown Exits Taken 6 | 1 1 1 . 1 1 1 . . . . . . . . . . . . . . . . . . . Scrap Searched 15 | . . 1 . . . 2 . . . 4 3 3 2 . . . . . . . . . . . . Spaces Dug 312 | . 5 . 4 15 . . 11 . 61 2 2 . 3 20 35 30 3 21 3 . 2 8 17 50 20 Terrain Destroyed 695 | . 7 . 78 63 . . 35 . 61 2 37 . 3 20 54 33 20 23 4 30 2 8 20 57 138 Melee 213 | . . . 4 1 . . 11 . 61 2 2 . 3 20 16 26 3 20 3 . . 7 16 15 3 Projectile 54 | . 7 . . . . . . . . . . . . . . 4 . 3 1 . 2 1 4 19 13 AOE 428 | . . . 74 62 . . 24 . . . 35 . . . 38 3 17 . . 30 . . . 23 122 Terrain Rammed . | . . . . . . . . . . . . . . . . . . . . . . . . . . Walls Destroyed . | . . . . . . . . . . . . . . . . . . . . . . . . . . Machines Disabled . | . . . . . . . . . . . . . . . . . . . . . . . . . . Actions | -11 -10 -10 -9 -9 -9 -9 -6 -6 -6 -6 -6 -6 -5 -5 -5 -5 -5 -5 -5 -5 -5 -5 -5 -4 -4 --------- Run | Yrd Mat Min Mat Sto Rec Scr Fac Was Fac Low Low Zio Pro Fac Gar Fac Gar Fac Ext Cet Arc Hub Gar Fac Arm Total 27710 | 84 829 684 992 776 631 1671 1220 583 2865 506 1250 859 778 1268 1127 1725 1508 1091 2211 444 200 421 1543 1697 747 Wait 2239 | 2 83 82 144 69 6 101 34 64 56 1 22 96 72 80 46 35 25 65 501 188 96 47 142 144 38 Move 23102 | 66 644 550 720 566 550 1530 1097 487 2623 494 1187 750 687 1099 899 1551 1349 942 1523 210 85 351 1193 1354 595 Hop 31 | . . . . . . . . . 21 1 1 . . 8 . . . . . . . . . . . Pick Up 234 | 8 12 7 23 19 1 11 9 6 10 2 3 5 2 17 13 11 15 4 11 1 2 1 14 15 12 Fast Attach 143 | 6 5 . 2 2 1 . 4 4 16 . 5 . 3 4 9 12 3 14 18 8 1 . 8 5 13 Attach 76 | 1 3 1 6 5 . 1 5 2 1 . 2 1 . 2 8 6 5 2 3 1 . . 4 6 11 Detach 25 | . 2 . . . 1 . . . 1 . 2 1 . 1 2 3 2 2 3 1 . . 1 . 3 Swap 354 | . 8 4 25 28 8 6 15 6 24 1 12 2 2 5 6 30 14 7 21 9 6 7 33 54 21 Drop 244 | . 7 5 22 19 3 20 6 6 25 2 4 4 2 12 7 16 12 12 15 10 4 3 20 5 3 Fire 542 | 1 62 31 46 62 11 . 2 . . . 8 . . . 10 12 42 6 60 9 5 3 60 70 42 Melee 522 | . . . 4 6 46 2 22 8 77 5 2 . 10 39 68 46 23 35 31 7 1 9 34 39 8 Ram . | . . . . . . . . . . . . . . . . . . . . . . . . . . Kick . | . . . . . . . . . . . . . . . . . . . . . . . . . . Crush 10 | . 3 4 . . 3 . . . . . . . . . . . . . . . . . . . . Escape Stasis 115 | . . . . . . . 25 . 11 . . . . . 21 . 14 . 13 . . . 31 . . Rewire 68 | . . . . . 1 . . . . . . . . . 38 2 4 2 12 . . . 3 5 1 Trap 3 | . . . . . . . 1 . . . 1 . . 1 . . . . . . . . . . . Miscellaneous 2 | . . . . . . . . . . . 1 . . . . 1 . . . . . . . . . Route ------- -11/Scrapyard -10/Materials (discovered 4 exits: *Mat x2 / *Min / [*Sub]) -10/Mines (discovered 3 exits: *Mat x2 / [*Exi]) -9/Materials (discovered 4 exits: [*Mat x2] / *Min / *Sto) -9/Storage (discovered 2 exits: [*Mat] / *Rec) -9/Recycling (discovered 2 exits: [*Fac] / *Scr) -9/Scraptown (discovered 2 exits: *Fac x2) -6/Factory (discovered 2 exits: Fac / *Low) -6/Waste -6/Factory (discovered 4 exits: *Fac x3 / *Low) -6/Lower Caves -6/Lower Caves (discovered 2 exits: *Fac / *Zio) -6/Zion -5/Proximity Caves -5/Factory (discovered 6 exits: Fac / Upp x2 / Ext x2 / Gar) -5/Garrison (discovered 4 exits: *Fac x4) -5/Factory (discovered 4 exits: *Fac x2 / *Upp / Gar) -5/Garrison (discovered 4 exits: *Fac x3 / *Fac) -5/Factory (discovered 6 exits: *Fac x2 / *Upp x2 / *Ext x2) -5/Extension (discovered 2 exits: *Fac / *Cet) -5/Cetus (discovered 2 exits: *Fac / *Arc) -5/Archives (discovered 3 exits: *Fac / *Hub x2) -5/Hub_04(d) (discovered 5 exits: Fac x4 / Gar) -5/Garrison (discovered 3 exits: *Fac x3) -4/Factory (discovered 7 exits: *Res x4 / *Upp x2 / *Arm) -4/Armory (discovered 1 exit: Res) History --------- Turn | Location | Event 13 | -11/Scrapyard | Discovered new exit (range 14) 128 | -11/Scrapyard | Entered Materials 240 | -10/Materials | Discovered new exit (range 6) 327 | -10/Materials | Build established: Mutant 541 | -10/Materials | Discovered new exit (range 15) 939 | -10/Materials | Discovered new exit (range 10) 1031 | -10/Materials | Discovered new exit (range 14) 1428 | -10/Materials | Prayed at D.C.S.S. Altar Unit 1477 | -10/Materials | Entered Mines 1481 | -10/Mines | Ranged accuracy permanently improved by X0-1V1 (+5%; -50 max core) 1485 | -10/Mines | X0-1V1 added 0b10 threat records associated with you (major) 1519 | -10/Mines | Assembled infested the area 1600 | -10/Mines | Learned location of Zion (-6) 1631 | -10/Mines | Deemed a non-threat by the Exiles lab entrance 1631 | -10/Mines | Discovered new exit (range 5) 1666 | -10/Mines | Learned Materials emergency access door positions 1920 | -10/Mines | Discovered new exit (range 7) 1926 | -10/Mines | Learned location of Storage (-9) 2081 | -10/Mines | X0-1V1 added 0b10 threat records associated with you (major) 2183 | -10/Mines | X0-1V1 added 0b10 threat records associated with you (minor) 2349 | -10/Mines | Build established: Scavenger-Mutant 2491 | -10/Mines | Discovered new exit (range 10) 2555 | -10/Mines | Entered Materials 2555 | -9/Materials | Evolved 2 slots: Propulsion x1, Utility x1 2562 | -9/Materials | Identified exit to Mines 2562 | -9/Materials | Identified exit to Storage 2688 | -9/Materials | X0-1V1 sent hostile G-34 Mercenary (x4) 2721 | -9/Materials | Lost 3 parts (1p1u1w) 2903 | -9/Materials | TH resistance permanently improved by X0-1V1 (+10%; -100 max core) 2989 | -9/Materials | X0-1V1 activates XOMVISION 3061 | -9/Materials | Discovered new exit (range 3) 3117 | -9/Materials | Build established: Mutant 3173 | -9/Materials | X0-1V1 foreshadows a heat wave 3406 | -9/Materials | Ambient heat levels rising (+10) 3415 | -9/Materials | X0-1V1 activates XOMVISION 3604 | -9/Materials | Ambient heat levels rising (+10) 3628 | -9/Materials | X0-1V1 sent you to a vault 3647 | -9/Materials | Discovered new exit (range 8) 3810 | -9/Materials | Ambient heat levels falling (-10) 4051 | -9/Materials | X0-1V1 activates XOMVISION 4072 | -9/Materials | Entered Storage 4296 | -9/Storage | Garrison activated, responded to threat 4463 | -9/Storage | Destroyed 8 combat bots 4504 | -9/Storage | X0-1V1 sent you into danger 4519 | -9/Storage | Core integrity fell below 50% 4541 | -9/Storage | Lost 3 parts (1n1u1w) 4552 | -9/Storage | Destroyed 7 combat bots 4736 | -9/Storage | Discovered new exit (range 8) 4738 | -9/Storage | X0-1V1 sent hostile S-10 Pest (x4) 4931 | -9/Storage | Used back door to open Recycling access 4931 | -9/Storage | Discovered new exit (range 5) 5223 | -9/Storage | X0-1V1 mutated your Utility slot to Weapon slot 5229 | -9/Storage | System corruption reached 10% 5272 | -9/Storage | First assault squad dispatched 5314 | -9/Storage | Entered Recycling 5526 | -9/Recycling | Build established: Gunner 5761 | -9/Recycling | Discovered new exit (range 13) 6133 | -9/Recycling | X0-1V1 sent you into danger 6159 | -9/Recycling | Core integrity fell below 20% 6286 | -9/Recycling | Scanned before Scraplab entrance 6312 | -9/Recycling | Entered Scraplab 6325 | -9/Recycling | Discovered new exit (range 3) 6332 | -9/Recycling | Entered Scraptown 6332 | -9/Scraptown | Accompanied by 16 allies 6332 | -9/Scraptown | System corruption cleaned by C-Scrubber 6482 | -9/Scraptown | Build established: Commander-Mutant 6672 | -9/Scraptown | Discovered new exit (range 13) 6788 | -9/Scraptown | Visited Spacefarers 6803 | -9/Scraptown | Visited TADAMA 6827 | -9/Scraptown | Visited Comm Corps 6902 | -9/Scraptown | Visited Symbiants 6945 | -9/Scraptown | Visited Fellowship of the Rings 6976 | -9/Scraptown | Visited UFD Registry 6976 | -9/Scraptown | Registered with UFD as "Bulletdrive" 6996 | -9/Scraptown | Visited Cyclists 7011 | -9/Scraptown | Entered Cyclist Reading Room 7104 | -9/Scraptown | Visited Cartography Club 7129 | -9/Scraptown | Visited A0-MCA Data Center 7176 | -9/Scraptown | Visited Derelict Rescue Squad 7217 | -9/Scraptown | Visited Scrap Suit Storage 7238 | -9/Scraptown | Visited Scrapoid Research Area 7262 | -9/Scraptown | Visited Junk Repository 7323 | -9/Scraptown | Visited Science Guys 7420 | -9/Scraptown | Visited Chapter 10 7864 | -9/Scraptown | Learned location of Warlord (-5) 7864 | -9/Scraptown | Learned location of Cetus (-5) 7864 | -9/Scraptown | Learned 8 Materials zone layouts 7864 | -9/Scraptown | Learned 8 Access zone layouts 7864 | -9/Scraptown | Learned 16 Lower Caves zone layouts 7864 | -9/Scraptown | Learned 16 Upper Caves zone layouts 7864 | -9/Scraptown | Learned 24 Upper Caves zone layouts 7864 | -9/Scraptown | Learned location of 1 exit from Factory 7864 | -9/Scraptown | Learned location of 1 exit from Upper Caves 7864 | -9/Scraptown | Learned location of 3 exits from Upper Caves 7912 | -9/Scraptown | Found Deep Structural Scanner 8030 | -9/Scraptown | Found DRS Beacon 8064 | -9/Scraptown | Discovered new exit (range 5) 8181 | -9/Scraptown | Given a B rating by A0-MCA 8183 | -9/Scraptown | Found A0-MCA's Component Scanner 8276 | -9/Scraptown | Visited CR-KLE's Repair Center 8284 | -9/Scraptown | CR-KLE repaired 1 part 8400 | -9/Scraptown | Met Optimus 8400 | -9/Scraptown | Accepted into 0bPrime 8457 | -9/Scraptown | Entered Factory 8457 | -6/Factory | Accompanied by 16 allies 8457 | -6/Factory | Evolved 6 slots: Propulsion x3, Utility x3 8458 | -6/Factory | Identified exit to Lower Caves 8459 | -6/Factory | Identified exit to Factory 8494 | -6/Factory | Loaded intel: 8 recycling unit locations 8500 | -6/Factory | Learned location of Protoforge (-2) 8517 | -6/Factory | X0-1V1 redirected Transport squads to designated parking area 8538 | -6/Factory | Mass support permanently improved by X0-1V1 (+8; -220 max core) 8540 | -6/Factory | Garrison activated, responded to threat 8553 | -6/Factory | X0-1V1 sent hostile X-62 Marksman (x3) 8592 | -6/Factory | X0-1V1 upgraded hostiles (x3) 8609 | -6/Factory | Lost 16 allies 8727 | -6/Factory | X0-1V1 activates XOMVISION 8761 | -6/Factory | X0-1V1 enhanced Transport squad support 8865 | -6/Factory | Build established: Sprinter 8876 | -6/Factory | X0-1V1 mutated your Weapon slot to Power slot 8931 | -6/Factory | Manually triggered Chute Trap 8931 | -6/Factory | Sucked down chute 8931 | -6/Factory | Entered Waste 8932 | -6/Waste | Met a frightened Derelict 8934 | -6/Waste | Spotted C-40 Crusher 8950 | -6/Waste | Spotted C-40 Crusher 8959 | -6/Waste | System corruption reached 10% 8965 | -6/Waste | X0-1V1 mutated your Weapon slot to Propulsion slot 8968 | -6/Waste | Identified exit to Factory 8968 | -6/Waste | X0-1V1 revealed exit location to -6/Factory 8982 | -6/Waste | Spotted C-40 Crusher 8995 | -6/Waste | Weapon slot count temporarily expanded by X0-1V1 (+4) 9004 | -6/Waste | Spotted C-40 Crusher 9007 | -6/Waste | X0-1V1 sent allied Knight (x1) 9019 | -6/Waste | Spotted C-40 Crusher 9021 | -6/Waste | Spotted C-40 Crusher 9023 | -6/Waste | X0-1V1 whisked you away to safety 9061 | -6/Waste | X0-1V1 sent you into danger 9075 | -6/Waste | Warlord forces began an assault 9115 | -6/Waste | Allies destroyed C-40 Crusher 9116 | -6/Waste | Allies destroyed C-40 Crusher 9117 | -6/Waste | Allies destroyed C-40 Crusher 9124 | -6/Waste | Allies destroyed C-40 Crusher 9152 | -6/Waste | Lost 3 allies 9192 | -6/Waste | Entered Factory 9192 | -6/Factory | Accompanied by 12 allies 9194 | -6/Factory | X0-1V1 tapped a No Entrance sign 9213 | -6/Factory | X0-1V1 redirected Transport squads to designated parking area 9362 | -6/Factory | X0-1V1 revealed exit location to -5/Factory 9394 | -6/Factory | Discovered exit to Factory (range 10) 9423 | -6/Factory | Sensors blinded by X0-1V1 9439 | -6/Factory | X0-1V1 announced a LAN party 9525 | -6/Factory | P-60 Hacker assimilated allied B7-V73(g) 9627 | -6/Factory | X0-1V1 sent you to a vault 9635 | -6/Factory | Found Prototype Slashing Weapon 9635 | -6/Factory | Identified Scimitar of Distortion 9703 | -6/Factory | X0-1V1 revealed exit location to -5/Factory 9837 | -6/Factory | Loaded intel: 8 recycling unit locations 9898 | -6/Factory | X0-1V1 sent hostile B-48 Gladiator (x3) 9994 | -6/Factory | Repaired Adv. Sensor Array? 9999 | -6/Factory | Spotted B-75 Beast 10001 | -6/Factory | X0-1V1 vaporized surrounding terrain (radius 24) 10019 | -6/Factory | X0-1V1 added 0b10 threat records associated with you (major) 10068 | -6/Factory | Lost 5 parts (1p3n1u) 10085 | -6/Factory | X0-1V1 enhanced Transport squad support 10090 | -6/Factory | X0-1V1 sent hostile Guerrilla (x2) 10097 | -6/Factory | X0-1V1 activates XOMVISION 10098 | -6/Factory | X0-1V1 revealed exit location to -6/Lower Caves 10099 | -6/Factory | Core integrity restored by X0-1V1 (+129) 10242 | -6/Factory | Search patrols dispatched 10293 | -6/Factory | Entered Lower Caves 10294 | -6/Lower Caves | Identified exit to Lower Caves 10327 | -6/Lower Caves | Learned 8 Factory zone layouts 10386 | -6/Lower Caves | Encountered a Warlord checkpoint 10399 | -6/Lower Caves | X0-1V1 sent hostile Thug (x3) 10445 | -6/Lower Caves | X0-1V1 sent you into danger 10446 | -6/Lower Caves | Attracted the attention of an 0b10 outpost 10455 | -6/Lower Caves | Entered another Lower Caves area 10456 | -6/Lower Caves | Activated DRS Beacon 10458 | -6/Lower Caves | Identified exit to Zion 10458 | -6/Lower Caves | X0-1V1 revealed exit location to -6/Zion 10459 | -6/Lower Caves | X0-1V1 mutated your Propulsion slot to Weapon slot 10460 | -6/Lower Caves | Spotted B-75 Beast 10461 | -6/Lower Caves | Learned location of 1 exit from Factory 10465 | -6/Lower Caves | X0-1V1 vaporized surrounding terrain (radius 18) 10469 | -6/Lower Caves | Sensors blinded by X0-1V1 10469 | -6/Lower Caves | X0-1V1 opened Sealed Heavy Doors 10472 | -6/Lower Caves | Hvy. Machine Gun reconfigured into Item Mimic 10473 | -6/Lower Caves | X0-1V1 sent allied Thug (x5) 10486 | -6/Lower Caves | X0-1V1 mutated your Weapon slot to Utility slot 10486 | -6/Lower Caves | X0-1V1 rewrote OP-HYO(g) IFF filter 10492 | -6/Lower Caves | X0-1V1 revealed exit location to -5/Factory 10498 | -6/Lower Caves | X0-1V1 vaporized surrounding terrain (radius 19) 10500 | -6/Lower Caves | X0-1V1 sent you into danger 10501 | -6/Lower Caves | X0-1V1 upgraded hostiles (x1) 10503 | -6/Lower Caves | Spotted B-86 Titan 10504 | -6/Lower Caves | Weapon slot count temporarily expanded by X0-1V1 (+3) 10537 | -6/Lower Caves | Lost 3 parts (3n) 10583 | -6/Lower Caves | Lost 4 allies 10721 | -6/Lower Caves | X0-1V1 vaporized surrounding terrain (radius 17) 10799 | -6/Lower Caves | X0-1V1 activates XOMVISION 10868 | -6/Lower Caves | Learned Factory interactive machine intel 10900 | -6/Lower Caves | X0-1V1 activates XOMVISION 10951 | -6/Lower Caves | Entered Zion 10952 | -6/Zion | Identified exit to Proximity Caves 11032 | -6/Zion | Build established: Mutant 11036 | -6/Zion | Found Prototype Special Weapon 11059 | -6/Zion | Given A8's code to call for help 11087 | -6/Zion | Found Relay Coupler [Programmer] 11089 | -6/Zion | Found Relay Coupler [Programmer] 11107 | -6/Zion | Enhanced Grunt warped into view, answering call for help 11110 | -6/Zion | Enhanced Grunt warped into view, answering call for help 11126 | -6/Zion | Found Prototype Device 11128 | -6/Zion | Identified Phasing AFG 11141 | -6/Zion | Turned away by Imprinter 11189 | -6/Zion | Learned Factory non-interactive machine intel 11200 | -6/Zion | Received a hallucinogenic algorithm 11336 | -6/Zion | Entered Proximity Caves 11336 | -5/Proximity Caves | Accompanied by 2 allies 11393 | -5/Proximity Caves | X0-1V1 revealed exit location to -5/Factory 11454 | -5/Proximity Caves | Spotted B-75 Beast 11457 | -5/Proximity Caves | X0-1V1 activates XOMVISION 11495 | -5/Proximity Caves | Learned Factory terminal intel 11594 | -5/Proximity Caves | Found Alien Artifact 11594 | -5/Proximity Caves | Identified Dimensional Node Initializer 11594 | -5/Proximity Caves | Initialized slip node 11654 | -5/Proximity Caves | Sensors blinded by X0-1V1 11677 | -5/Proximity Caves | Build established: Scout 11709 | -5/Proximity Caves | Entered Factory 11709 | -5/Factory | Accompanied by 2 allies 11709 | -5/Factory | Evolved 2 slots: Utility x2 11710 | -5/Factory | Identified exit to Upper Caves 11711 | -5/Factory | Identified exit to Factory 11712 | -5/Factory | Identified exit to Extension 11713 | -5/Factory | Loaded intel: 235 non-interactive machine locations 11714 | -5/Factory | Loaded intel: 56 interactive machine locations 11715 | -5/Factory | Loaded intel: 28 terminal locations 11721 | -5/Factory | Imp. Hacking Suite reconfigured into Item Mimic 11749 | -5/Factory | Loaded intel: 8 recycling unit locations 11782 | -5/Factory | Sensors blinded by X0-1V1 11857 | -5/Factory | X0-1V1 revealed exit location to -5/Extension 11942 | -5/Factory | X0-1V1 mutated your Propulsion slot to Weapon slot 12016 | -5/Factory | Identified RU-N14's Throwing Claymores 12092 | -5/Factory | X0-1V1 sent you to a vault 12094 | -5/Factory | Found Chaos Jack 12125 | -5/Factory | Found Prototype Device 12128 | -5/Factory | Identified Adv. EM Shield 12302 | -5/Factory | X0-1V1 mutated your Utility slot to Propulsion slot 12307 | -5/Factory | Identified exit to Garrison 12308 | -5/Factory | Entered Garrison 12343 | -5/Garrison | X0-1V1 activates XOMVISION 12348 | -5/Garrison | Triggered checkpoint 12472 | -5/Garrison | Triggered checkpoint 12483 | -5/Garrison | Discovered new exit (range 49) 12483 | -5/Garrison | Discovered new exit (range 23) 12483 | -5/Garrison | Discovered new exit (range 32) 12483 | -5/Garrison | Discovered new exit (range 45) 12486 | -5/Garrison | Triggered checkpoint 12497 | -5/Garrison | X0-1V1 activates XOMVISION 12540 | -5/Garrison | Rewired Striker 12611 | -5/Garrison | X0-1V1 whisked you away to safety 12617 | -5/Garrison | Build established: Mutant 12639 | -5/Garrison | Lost 5 parts (1p1n3u) 12674 | -5/Garrison | Heavy support dispatched to Factory 12754 | -5/Garrison | Found embedded Infiltrators 12811 | -5/Garrison | Weapon slot count temporarily expanded by X0-1V1 (+3) 12862 | -5/Garrison | Triggered checkpoint 12878 | -5/Garrison | Installed Relay Interface Framework 12998 | -5/Garrison | Expanded RIF knowledge: Crosswire 13031 | -5/Garrison | X0-1V1 destroyed Phase Generator 13031 | -5/Garrison | Phase Generator disabled 13036 | -5/Garrison | Triggered checkpoint 13037 | -5/Garrison | Core integrity fell below 50% 13050 | -5/Garrison | Identified exit to Factory 13072 | -5/Garrison | Entered Factory 13072 | -5/Factory | Accompanied by 3 allies 13084 | -5/Factory | Lost 3 parts (3n) 13123 | -5/Factory | Discovered exit to Factory (range 9) 13328 | -5/Factory | Discovered exit to Upper Caves (range 36) 13377 | -5/Factory | X0-1V1 sent you into danger 13508 | -5/Factory | X0-1V1 mutated your Propulsion slot to Utility slot 13530 | -5/Factory | Loaded intel: 8 recycling unit locations 13533 | -5/Factory | X0-1V1 announced a LAN party 13583 | -5/Factory | Sensors blinded by X0-1V1 13628 | -5/Factory | Cargo convoy interrupted 13671 | -5/Factory | X0-1V1 whisked you away to safety 13697 | -5/Factory | Lost 3 parts (1p2n) 13772 | -5/Factory | Build established: Scavenger-Scout 13790 | -5/Factory | X0-1V1 mutated your Utility slot to Propulsion slot 13842 | -5/Factory | X0-1V1 revealed exit location to -4/Factory 13904 | -5/Factory | Spotted B-75 Beast 13978 | -5/Factory | Found Prototype Launcher 14073 | -5/Factory | Build established: Scout 14294 | -5/Factory | Identified exit to Garrison 14295 | -5/Factory | Entered Garrison 14355 | -5/Garrison | Garrison Relay disabled 14363 | -5/Garrison | Garrison Relay disabled 14375 | -5/Garrison | Triggered checkpoint 14447 | -5/Garrison | Core integrity fell below 20% 14472 | -5/Garrison | Spotted B-75 Beast 14475 | -5/Garrison | Triggered checkpoint 14494 | -5/Garrison | Allies destroyed B-75 Beast 14545 | -5/Garrison | Lost 3 allies 14582 | -5/Garrison | Discovered exit to Factory (range 15) 14616 | -5/Garrison | Lost 3 parts (1p2u) 14629 | -5/Garrison | Lost 3 allies 14666 | -5/Garrison | Expanded RIF knowledge: Robot Detection 14693 | -5/Garrison | Triggered checkpoint 14711 | -5/Garrison | Garrison Relay disabled 14761 | -5/Garrison | Triggered checkpoint 14780 | -5/Garrison | Discovered new exit (range 5) 14829 | -5/Garrison | Triggered checkpoint 14847 | -5/Garrison | Triggered checkpoint 14866 | -5/Garrison | Lost 3 allies 14867 | -5/Garrison | X0-1V1 activates XOMVISION 14876 | -5/Garrison | Core integrity restored by X0-1V1 (+151) 14919 | -5/Garrison | Build established: Bothacker-Mutant 14945 | -5/Garrison | Discovered exit to Factory (range 21) 14979 | -5/Garrison | Triggered checkpoint 15004 | -5/Garrison | Garrison Relay disabled 15048 | -5/Garrison | X0-1V1 activates XOMVISION 15054 | -5/Garrison | Discovered exit to Factory (range 13) 15077 | -5/Garrison | Triggered checkpoint 15092 | -5/Garrison | Garrison Relay disabled 15124 | -5/Garrison | Lost 4 allies 15200 | -5/Garrison | Core integrity restored by X0-1V1 (+132) 15214 | -5/Garrison | X0-1V1 activates XOMVISION 15247 | -5/Garrison | Identified exit to Factory 15256 | -5/Garrison | Entered Factory 15257 | -5/Factory | X0-1V1 sent you to a vault 15269 | -5/Factory | Found Prototype Device 15269 | -5/Factory | Identified Exp. EM Disruption Field 15378 | -5/Factory | X0-1V1 vaporized surrounding terrain (radius 20) 15436 | -5/Factory | Loaded intel: 8 recycling unit locations 15503 | -5/Factory | Found Exp. Hacking Suite 15527 | -5/Factory | Discovered exit to Factory (range 8) 15653 | -5/Factory | Build established: Bothacker-Scout 15676 | -5/Factory | Discovered exit to Factory (range 23) 15822 | -5/Factory | Spotted B-75 Beast 15829 | -5/Factory | X0-1V1 vaporized surrounding terrain (radius 24) 15900 | -5/Factory | X0-1V1 mutated your Weapon slot to Propulsion slot 15989 | -5/Factory | Entered Extension 16040 | -5/Extension | X0-1V1 revealed exit location to -4/Factory 16097 | -5/Extension | Rescued a captive Derelict 16099 | -5/Extension | Rescued a captive Derelict 16306 | -5/Extension | X0-1V1 activates XOMVISION 16390 | -5/Extension | X0-1V1 added 0b10 threat records associated with you (major) 16483 | -5/Extension | Spotted B-75 Beast 16527 | -5/Extension | Spotted B-75 Beast 16542 | -5/Extension | Allies destroyed B-75 Beast 16606 | -5/Extension | Lost 11 allies 16607 | -5/Extension | Destroyed B-75 Beast 16613 | -5/Extension | Lost 4 parts (1p2n1w) 16724 | -5/Extension | Lost 5 parts (2p2n1u) 16920 | -5/Extension | Lost 3 allies 16981 | -5/Extension | X0-1V1 activates XOMVISION 17087 | -5/Extension | Rescued a captive Derelict 17088 | -5/Extension | Rescued a captive Derelict 17098 | -5/Extension | Weapon slot count temporarily expanded by X0-1V1 (+1) 17108 | -5/Extension | Rescued A7 17116 | -5/Extension | Rescued a captive Derelict 17292 | -5/Extension | Core integrity restored by X0-1V1 (+94) 17365 | -5/Extension | Rescued a captive Derelict 17367 | -5/Extension | Rescued a captive Derelict 17397 | -5/Extension | X0-1V1 rewrote 23-20C(h) IFF filter 17493 | -5/Extension | Discovered new exit (range 22) 17528 | -5/Extension | X0-1V1 announced a LAN party 17553 | -5/Extension | X0-1V1 sent you into danger 17630 | -5/Extension | Identified exit to Cetus 17646 | -5/Extension | Entered Cetus 17646 | -5/Cetus | Accompanied by 6 allies (A7) 17651 | -5/Cetus | Acquired a Cetus Manufacturing Module code from A7 17676 | -5/Cetus | Spotted Cetus Guard 17676 | -5/Cetus | Spotted Cetus Guard 17676 | -5/Cetus | Spotted Cetus Guard 17680 | -5/Cetus | Spotted Cetus Guard 17683 | -5/Cetus | Destroyed Cetus Guard 17688 | -5/Cetus | Destroyed Cetus Guard 17692 | -5/Cetus | Destroyed Cetus Guard 17695 | -5/Cetus | Allies destroyed Cetus Guard 17712 | -5/Cetus | Identified exit to Archives 17712 | -5/Cetus | X0-1V1 revealed exit location to -5/Archives 17738 | -5/Cetus | Started Cetus Manufacturing Module 17758 | -5/Cetus | Core integrity restored by X0-1V1 (+138) 17763 | -5/Cetus | Manufactured an Enhanced Grunt 17769 | -5/Cetus | X0-1V1 activates XOMVISION 17788 | -5/Cetus | Manufactured an Enhanced Grunt 17813 | -5/Cetus | Manufactured an Enhanced Grunt 17838 | -5/Cetus | Manufactured an Enhanced Grunt 17863 | -5/Cetus | Manufactured an Enhanced Grunt 17881 | -5/Cetus | Spotted Cetus Guard 17882 | -5/Cetus | Spotted Cetus Guard 17882 | -5/Cetus | Spotted Cetus Guard 17884 | -5/Cetus | Spotted Cetus Guard 17890 | -5/Cetus | Allies destroyed Cetus Guard 17897 | -5/Cetus | Allies destroyed Cetus Guard 17903 | -5/Cetus | Allies destroyed Cetus Guard 17906 | -5/Cetus | Allies destroyed Cetus Guard 17909 | -5/Cetus | Discovered exit to Factory (range 21) 17917 | -5/Cetus | Met Revision 17 17976 | -5/Cetus | Murdered A7 17977 | -5/Cetus | Extracted ID and sensor layout for unrecognized location from A7's data core 18004 | -5/Cetus | X0-1V1 activates XOMVISION 18018 | -5/Cetus | Entered Archives 18018 | -5/Archives | Accompanied by 8 allies 18117 | -5/Archives | Discovered new exit (range 22) 18136 | -5/Archives | Discovered exit to Factory (range 13) 18148 | -5/Archives | Discovered new exit (range 16) 18166 | -5/Archives | Identified exit to Hub_04(d) 18190 | -5/Archives | Entered Hub_04(d) 18190 | -5/Hub_04(d) | Accompanied by 6 allies 18281 | -5/Hub_04(d) | X0-1V1 sent you to a vault 18406 | -5/Hub_04(d) | X0-1V1 destroyed Network Hub 18406 | -5/Hub_04(d) | Network Hub disabled 18432 | -5/Hub_04(d) | Garrison activated, responded to threat 18460 | -5/Hub_04(d) | Sensors blinded by X0-1V1 18463 | -5/Hub_04(d) | Spotted Lightning 18478 | -5/Hub_04(d) | X0-1V1 downgraded hostiles (x1) 18482 | -5/Hub_04(d) | Identified exit to Garrison 18482 | -5/Hub_04(d) | Entered Garrison 18492 | -5/Garrison | Lost 8 allies 18494 | -5/Garrison | X0-1V1 sent hostile P-60 Hacker (x2) 18514 | -5/Garrison | Triggered checkpoint 18517 | -5/Garrison | Garrison Relay disabled 18533 | -5/Garrison | Core integrity restored by X0-1V1 (+126) 18609 | -5/Garrison | X0-1V1 vaporized surrounding terrain (radius 18) 18737 | -5/Garrison | Spotted B-75 Beast 18742 | -5/Garrison | Triggered checkpoint 18800 | -5/Garrison | Destroyed B-75 Beast 18812 | -5/Garrison | Triggered checkpoint 18832 | -5/Garrison | Triggered checkpoint 18844 | -5/Garrison | X0-1V1 mutated your Propulsion slot to Utility slot 18907 | -5/Garrison | Discovered exit to Factory (range 13) 18977 | -5/Garrison | Garrison Relay disabled 18990 | -5/Garrison | Expanded RIF knowledge: Alert ID Control 19004 | -5/Garrison | Triggered checkpoint 19020 | -5/Garrison | Build established: Scavenger-Mutant 19046 | -5/Garrison | Discovered exit to Factory (range 12) 19060 | -5/Garrison | Core integrity restored by X0-1V1 (+94) 19128 | -5/Garrison | Triggered checkpoint 19136 | -5/Garrison | Core integrity restored by X0-1V1 (+107) 19208 | -5/Garrison | Discovered exit to Factory (range 12) 19227 | -5/Garrison | X0-1V1 activates XOMVISION 19232 | -5/Garrison | Discovered exit to Factory (range 68) 19232 | -5/Garrison | Discovered exit to Factory (range 34) 19232 | -5/Garrison | Discovered exit to Factory (range 22) 19262 | -5/Garrison | Triggered checkpoint 19273 | -5/Garrison | Garrison Relay disabled 19376 | -5/Garrison | Build established: Bothacker-Mutant 19403 | -5/Garrison | X0-1V1 activates XOMVISION 19426 | -5/Garrison | Triggered checkpoint 19441 | -5/Garrison | Garrison Relay disabled 19482 | -5/Garrison | Found Fusion Bomb Launcher 19517 | -5/Garrison | Spotted B-75 Beast 19543 | -5/Garrison | Allies destroyed B-75 Beast 19597 | -5/Garrison | Entered Factory 19597 | -4/Factory | Accompanied by 6 allies 19597 | -4/Factory | Evolved 2 slots: Utility x2 19598 | -4/Factory | Identified exit to Research 19610 | -4/Factory | Identified exit to Armory 19610 | -4/Factory | X0-1V1 revealed exit location to -4/Armory 19723 | -4/Factory | Discovered new exit (range 4) 19773 | -4/Factory | Identified exit to Upper Caves 19826 | -4/Factory | P-70 Sage assimilated allied Soldier 6i 19909 | -4/Factory | Build established: Bothacker-Scout 19913 | -4/Factory | Lost 3 allies 19943 | -4/Factory | X0-1V1 revealed exit location to -3/Research 19968 | -4/Factory | X0-1V1 sent you into danger 19974 | -4/Factory | X0-1V1 turns hostiles against one another 20041 | -4/Factory | X0-1V1 announced a LAN party 20048 | -4/Factory | X0-1V1 revealed exit location to -4/Upper Caves 20053 | -4/Factory | X0-1V1 sent you to a vault 20084 | -4/Factory | Loaded intel: 8 recycling unit locations 20120 | -4/Factory | X0-1V1 redirected Transport squads to designated parking area 20193 | -4/Factory | Spotted B-86 Titan 20193 | -4/Factory | X0-1V1 sent you into danger 20276 | -4/Factory | Sensors blinded by X0-1V1 20396 | -4/Factory | X0-1V1 upgraded hostiles (x1) 20404 | -4/Factory | Build established: Bothacker-Mutant 20428 | -4/Factory | Cargo convoy interrupted 20537 | -4/Factory | Scraphulk reinforcements arrived? 20635 | -4/Factory | Spotted B-86 Titan 20735 | -4/Factory | Entered Armory 20735 | -4/Armory | Accompanied by 2 allies 20749 | -4/Armory | Sensors blinded by X0-1V1 20763 | -4/Armory | Found Fusion Bomb Launcher+ 20770 | -4/Armory | System corruption reached 10% 20864 | -4/Armory | X0-1V1 sent you into danger 20898 | -4/Armory | Destroyed 7 combat bots 20985 | -4/Armory | First assault squad dispatched 21016 | -4/Armory | X0-1V1 revealed exit location to -3/Research 21019 | -4/Armory | X0-1V1 destroyed Energy Cycler 21019 | -4/Armory | Energy Cycler disabled 21055 | -4/Armory | X0-1V1 upgraded hostiles (x2) 21056 | -4/Armory | Core integrity fell below 50% 21080 | -4/Armory | Core integrity fell below 20% 21089 | -4/Armory | X0-1V1 whisked you away to safety 21116 | -4/Armory | Lost 14 parts (3p5n5u1w) 21149 | -4/Armory | Found Fusion Bomb Launcher+ 21153 | -4/Armory | Found Gamma Bomb Array 21193 | -4/Armory | Build established: Mutant 21258 | -4/Armory | Destroyed by D-83 Annihilator with Micro-nuke Launcher Last Messages --------------- 21136_ Acquired Enh. Nova Cannon. 21149_ Acquired Fusion Bomb Launcher+. 21150_ Dropped Fusion Bomb Launcher+. 21153_ Ranged accuracy returns to normal. 21153_ Acquired Gamma Bomb Array. 21183_ Destroyed Cesium-ion Thruster. 21183_ E-15 Imp destroyed. 21186_ System corrupted: Heat flow error (+117). 21212_ W-44 Eye sends out distress signal. 21217_ Compression Vault explodes. 21217_ W-44 Eye destroyed. 21219_ E-15 Imp destroyed. 21229_ The unstable cave ceiling collapses. 21230_ Acquired Imp. Gyrokinetic Inverter. 21236_ Acquired Lgt. Antimatter Reactor. 21238_ Dropped Adv. Heat Sink. 21241_ Acquired Imp. Gyrokinetic Inverter. 21246_ The unstable cave ceiling collapses. 21255_ Acquired 1 matter. 21258_ X0-1V1 snickers! Map ----- +----------------------------------------------------+ | ?????????????????????????????????????????????????? | | ?????????????????????????????????????????????????? | | ?????????????????????????????????????????????????? | | ?????????????????????????????????????????????????? | | ?????????????????????????????????????????????????? | | ?????????????????????????????????????????????????? | | ?????????????????????????????????????????????????? | |